Cogmind - Beta 16.1 @@@ ROGUE MODE // 2026.03.11 @ 23:40:08 Player: Wulphy Result: Escaped! Performance ------------- Evolutions (9) 4500 Regions Visited (27) 5400 Robots Destroyed (266) 1330 Value Destroyed (15169) 15169 Prototype IDs (50) 1000 Alien Tech Used (0) 0 Bonus (17629) 17629 TOTAL SCORE: 45028 Bonus ------- High Alert Combat Kills 1284 Follower Combat Kills 6028 Hunted by Unchained 500 Entered Garrisons 1400 Used RIF Installer 3500 Network Hubs Disabled 200 Built Enhanced Grunts 300 Met R17 at Cetus 500 Hacked Protovariant 500 Met R17 at Research 2000 Scanned by Researcher 500 Win 3000 Friendly Fire -2083 Cogmind --------- Core Integrity 1356/1600 Matter 300/300 Energy 266/280 System Corruption 4% Temperature Cool (28) Movement Hovering (47) Location To Epsilon Eridani Parts ------- > --- POWER (2) -------- Light Quantum Reactor Light Quantum Reactor > --- PROPULSION (7) --- Combat Antigrav System Combat Antigrav System Combat Linear Gravjet Combat Linear Gravjet Combat Linear Gravjet Combat Linear Gravjet Combat Linear Gravjet > --- UTILITY (10) ----- Experimental Heat Sink High-capacity Storage Unit Triangulator Enhanced Optical Array Seismic Detector Advanced Melee Analysis Suite Advanced Cloaking Device Relay Coupler [Swarmer] (23) Relay Coupler [Sentry] (17) Relay Coupler [Hunter] (22) > --- WEAPON (6) ------- Power Sword Power Sword Ionic Axe Ionic Axe Ionic Axe Molecular Scythe > --- INVENTORY (20) --- Micro Antimatter Reactor Light Quantum Reactor Combat Linear Gravjet Combat Linear Gravjet Combat Linear Gravjet Combat Linear Gravjet Combat Linear Gravjet Improved Energy Well (400) Advanced Weight Redist. System Advanced Terrain Scanner Advanced Actuator Array Advanced ECM Suite Improved Point Defense System Relay Coupler [Duelist] (39) Advanced Component Analysis Suite Drone Bay (2/2) Long-range Phase Cannon Long-range Phase Cannon Advanced Remote Datajack Advanced Remote Datajack Peak State ------------ > --- POWER ------------ Micro Antimatter Reactor Light Quantum Reactor > --- PROPULSION ------- Combat Linear Gravjet Combat Linear Gravjet Combat Linear Gravjet Combat Linear Gravjet Combat Linear Gravjet Combat Linear Gravjet Combat Linear Gravjet > --- UTILITY ---------- Experimental Heat Sink Coolant Network High-capacity Storage Unit Advanced Weight Redist. System Enhanced Optical Array Advanced Hacking Suite Relay Coupler [Swarmer] Relay Coupler [Sentry] Relay Coupler [Hunter] > --- WEAPON ----------- Long-range Phase Cannon Long-range Phase Cannon Long-range Phase Cannon Ionic Axe Lance Lance > --- INVENTORY -------- Light Antimatter Reactor Combat Antigrav System Combat Antigrav System Combat Antigrav System Combat Linear Gravjet Combat Linear Gravjet Combat Linear Gravjet Advanced Heat Sink Improved Energy Well Advanced Weight Redist. System Experimental EM Disruption Field Relay Coupler [Sentry] Relay Coupler [Hunter] Advanced Component Analysis Suite Long-range Phase Cannon Ionic Axe Ionic Axe Lance Enhanced Force Lance [Rating: 188] Favorites ----------- Power Light Quantum Reactor Engine Light Angular Momentum Engine Power Core Micro Fission Core Reactor Light Quantum Reactor Propulsion Compact Wheel Treads Armored Treads Wheel Compact Wheel Hover Unit Combat Linear Gravjet Flight Unit Field Propulsion Array Utility Huge Storage Unit Device Seismic Detector Storage Huge Storage Unit Processor Enhanced Optical Array Hackware Relay Coupler [Sentry] Protection Medium Regenerative Plating Weapon Enhanced Autogun Energy Gun Small Laser Energy Cannon Cooled Plasma Cannon Ballistic Gun Enhanced Autogun Ballistic Cannon Heavy Mass Driver Launcher Advanced EMP Blaster Special Weapon Remote Datajack Impact Weapon Heavy Mace Slashing Weapon Phasing Sabre Piercing Weapon Enhanced Force Lance Special Melee Weapon 1B-0RG's Assimilator Build | -11 -10 -10 -8 -8 -8 -8 -7 -7 -7 -7 -6 -6 -6 -6 -6 -6 -5 -5 -5 -5 -4 -3 -3 -2 -1 -1 -1 ------- Run | Yrd Mat Sub Mat Gar Mat Gar Fac Gar Fac Gar Fac Ext Cet Arc Hub Gar Fac Was Fac Gar Fac Res Tes Res Acc Gar Acc Slots Evolved 18 | . . . 4 . . . 2 . . . 2 . . . . . 2 . . . 2 2 . 2 2 . . Power 1 | . . . . . . . . . . . 1 . . . . . . . . . . . . . . . . Propulsion 5 | . . . 1 . . . . . . . . . . . . . . . . . . 2 . 2 . . . Utility 8 | . . . 2 . . . 2 . . . . . . . . . . . . . 2 . . . 2 . . Weapon 4 | . . . 1 . . . . . . . 1 . . . . . 2 . . . . . . . . . . Parts Attached 304 | 7 5 9 20 7 8 9 7 15 3 17 3 11 9 . 5 19 18 1 3 18 7 37 7 13 11 12 23 Power 44 | 1 1 . 3 1 2 . 1 1 . 1 1 2 4 . . 3 4 . . 4 . 3 2 2 1 3 4 Engine 16 | 1 1 . 3 1 1 . 1 . . . 1 1 2 . . . 1 . . 3 . . . . . . . Core 7 | . . . . . 1 . . . . . . 1 . . . 2 3 . . . . . . . . . . Reactor 21 | . . . . . . . . 1 . 1 . . 2 . . 1 . . . 1 . 3 2 2 1 3 4 Propulsion 57 | 2 1 2 6 2 2 1 2 1 1 1 1 5 . . . 2 3 . 1 2 2 9 1 1 7 . 2 Treads 12 | 2 1 . 5 1 2 . . . . 1 . . . . . . . . . . . . . . . . . Leg . | . . . . . . . . . . . . . . . . . . . . . . . . . . . . Wheel 24 | . . 2 1 1 . 1 2 1 1 . 1 5 . . . 1 3 . 1 2 2 . . . . . . Hover 16 | . . . . . . . . . . . . . . . . . . . . . . 5 1 1 7 . 2 Flight 5 | . . . . . . . . . . . . . . . . 1 . . . . . 4 . . . . . Utility 128 | 2 1 3 5 2 2 5 4 10 2 11 1 1 5 . 4 10 5 1 2 12 4 15 2 3 1 5 10 Device 40 | 1 . 1 4 1 1 . . 1 1 . . 1 1 . . . 2 . 2 2 1 9 . 1 . 3 8 Storage 9 | 1 1 1 . . . . . . . . . . . . 1 1 . . . 1 . 2 . 1 . . . Processor 4 | . . . . . 1 . . . . . . . . . . . 1 . . . . . 1 . . . 1 Hackware 57 | . . . . . . 3 1 7 . 8 1 . 1 . 3 9 2 1 . 8 3 4 1 1 1 2 1 Protection 18 | . . 1 1 1 . 2 3 2 1 3 . . 3 . . . . . . 1 . . . . . . . Artifact . | . . . . . . . . . . . . . . . . . . . . . . . . . . . . Weapon 75 | 2 2 4 6 2 2 3 . 3 . 4 . 3 . . 1 4 6 . . . 1 10 2 7 2 4 7 Energy Gun 4 | 2 . . . . . . . . . . . . . . . . 2 . . . . . . . . . . Energy Cannon 12 | . . . 1 . . . . 1 . 1 . . . . . 1 . . . . 1 . . 2 1 2 2 Ballistic Gun 12 | . 1 2 4 1 1 1 . . . . . . . . . . . . . . . . 2 . . . . Ballistic Cannon 5 | . . 1 . . . . . . . 2 . . . . . 1 . . . . . 1 . . . . . Launcher 5 | . . . 1 . 1 . . 1 . . . . . . . 1 . . . . . 1 . . . . . Special Weapon 12 | . 1 . . . . 2 . . . 1 . 2 . . 1 . 2 . . . . 2 . . . . 1 Impact Weapon 2 | . . . . 1 . . . . . . . . . . . . 1 . . . . . . . . . . Slashing Weapon 12 | . . 1 . . . . . 1 . . . 1 . . . 1 . . . . . . . 4 . . 4 Piercing Weapon 5 | . . . . . . . . . . . . . . . . . . . . . . 1 . 1 1 2 . Special Melee Weapon 6 | . . . . . . . . . . . . . . . . . 1 . . . . 5 . . . . . Unidentified Prototypes 18 | . . . 2 . 1 . . . . . . 1 4 . . . 5 . . . . 1 . 1 1 . 2 Parts Lost 66 | . 1 2 2 1 . . . 4 1 6 . 1 1 . . 6 3 . 1 2 13 . 8 3 2 5 4 Power 16 | . . 1 . . . . . . . 1 . . . . . 2 1 . 1 . 2 . 2 1 . 3 2 Propulsion 12 | . . . . 1 . . . 1 . 1 . 1 . . . 2 1 . . 2 3 . . . . . . Utility 19 | . . 1 . . . . . 3 1 2 . . 1 . . . . . . . 6 . 2 . 1 1 1 Weapon 19 | . 1 . 2 . . . . . . 2 . . . . . 2 1 . . . 2 . 4 2 1 1 1 Highest Loss Streak 12 | . 1 2 1 1 . . . 2 1 3 . 1 1 . . 5 1 . 1 2 12 . 7 1 2 2 3 To Critical Strikes . | . . . . . . . . . . . . . . . . . . . . . . . . . . . . Average Backups 20 | 3 8 14 19 20 20 20 20 19 19 19 19 19 20 20 19 19 26 26 26 27 24 6 11 11 16 18 19 Power . | . . . . . . . . . 1 . . . . 1 1 . 1 1 1 1 1 . . . 1 . 1 Propulsion 2 | 1 3 4 4 3 2 3 2 1 1 1 1 1 2 2 2 1 2 3 3 2 2 1 3 2 6 6 5 Utility 11 | . 1 3 4 10 11 10 11 11 11 11 12 12 11 11 10 10 17 16 16 18 15 3 6 6 8 6 8 Weapon 3 | 1 3 4 6 4 4 3 3 3 3 2 2 2 2 2 2 2 3 3 3 2 2 . 1 1 1 5 3 Tool/Special . | . . . . . . . . . . . . . . . . . . . . . . . . . . . . Unused Backups 89 | . 1 3 7 7 3 1 . 12 1 2 . . . . . 2 5 . . 4 16 4 . 2 3 . 16 Power 8 | . 1 . 2 . . . . . . . . . . . . . . . . . 1 . . . . . 4 Propulsion 12 | . . . 1 1 . . . 1 . . . . . . . . . . . . 2 2 . . 2 . 3 Utility 52 | . . . 1 5 2 1 . 10 1 2 . . . . . . 4 . . 4 13 1 . . . . 8 Weapon 13 | . . 3 3 1 1 . . 1 . . . . . . . . 1 . . . . . . 2 1 . . Tool/Special 4 | . . . . . . . . . . . . . . . . 2 . . . . . 1 . . . . 1 Average Slot Usage (%) 85 | . 100 97 95 90 90 95 90 86 91 80 85 86 89 93 93 90 72 70 66 69 62 60 95 85 93 93 95 Engine 4 | . 14 11 8 9 5 9 7 4 . . 5 9 7 . . . . . . 6 4 . . . . . . Core 1 | . . . . . 3 . . . . . . 1 1 . . 6 10 11 7 2 . . . . . . . Reactor 3 | . . . . . . . . 2 7 6 6 1 3 13 13 6 . . . 1 4 5 8 6 8 7 8 Treads 3 | . 28 7 9 9 9 9 . . . . 4 . . . . . . . . . . . . . . . . Wheel 13 | . . 21 17 17 17 17 15 15 15 9 7 13 20 20 20 16 16 17 17 17 13 . . . . . . Hover 3 | . . . . . . . . . . . . . . . . . . . . . . 2 23 29 28 28 28 Device 6 | . 14 12 14 9 9 8 15 9 . . . 5 3 . . . . . . 1 3 14 5 2 9 15 15 Storage 6 | . 14 14 9 9 9 9 7 7 7 7 6 6 6 6 6 6 5 5 5 6 4 2 4 4 4 4 4 Hackware 13 | . . . . . . 6 6 15 30 25 26 20 20 20 24 25 17 17 17 12 16 11 22 19 16 12 12 Protection 5 | . . 1 8 9 9 9 13 6 6 5 6 6 5 13 7 5 4 5 5 5 6 . . . . . . Energy Cannon 1 | . . . . . . . . 1 7 3 . . . . . 3 1 . 1 2 . . . 3 3 11 1 Ballistic Gun 6 | . 1 16 25 23 24 19 12 5 . . . . . . . . . . . . . . 6 . . . . Ballistic Cannon 1 | . . 1 . . . . . . . 3 6 6 6 6 6 4 1 . . . . . 2 . . . . Special Weapon 3 | . . . 1 . . 2 2 7 6 6 6 7 6 12 6 5 3 4 2 . . 3 4 . . . . Impact Weapon 1 | . . . . 3 2 4 6 4 . . . . . . . . . . 1 1 3 . . . . . . Slashing Weapon 3 | . . 7 . . . . . 1 6 6 6 4 6 . 5 7 3 . . . . . . 5 12 1 14 Special Melee Weapon 1 | . . . . . . . . . . . . . . . . . 3 5 5 5 4 5 4 . . . . Peak Build Rating 188 | 7 8 22 40 46 47 46 49 63 63 64 72 76 84 84 82 82 118 114 114 129 134 123 134 160 183 188 184 Average Rating 76 | 5 7 17 33 43 43 40 47 55 61 61 71 72 70 82 79 70 101 113 110 118 110 86 123 134 169 177 179 On Entrance 73 | . 7 7 19 37 44 42 37 47 62 62 64 72 67 84 82 77 65 113 114 109 122 3 119 91 160 182 178 Avg Prop Armor Cover (%) 6 | . . . 6 6 6 8 9 . . 7 6 . . . . . . . . . . . . 6 . . . Naked Turns 116 | . . . . . . . . . . . . . . . . . . . . . 108 8 . . . . . Heaviest Build 246 | 14 19 95 118 123 123 122 116 119 114 127 134 136 153 153 154 181 232 228 228 246 234 70 81 102 105 111 111 Greatest Support 112 | 40 40 40 32 32 32 32 44 44 40 40 38 44 58 42 42 48 42 42 42 42 48 89 89 112 112 111 111 Greatest Overweight (x) 11 | . . 2 4 11 3 6 4 2 2 4 4 3 3 3 3 5 5 5 5 5 5 . 1 1 . . . Average Overweight (x) 2 | . . 1 3 3 3 3 2 2 2 3 3 2 2 3 3 3 4 5 5 5 3 . . . . . . Largest Inventory Capacity 30 | 8 10 25 25 25 25 25 25 25 25 25 25 25 25 25 25 30 30 30 30 30 30 15 15 20 20 20 20 Average Capacity 24 | 7 9 21 25 25 25 25 25 25 25 25 25 25 25 25 25 25 30 30 30 30 26 8 15 16 20 20 20 Most Carried 30 | 6 10 25 25 25 25 25 25 25 25 25 25 25 25 25 25 30 30 29 30 30 30 10 15 17 20 20 20 Average Carried 23 | 3 8 17 24 24 24 24 24 24 24 24 24 24 24 25 24 24 29 28 28 29 26 7 14 14 19 18 19 Final Capacity 30 | 8 10 25 25 25 25 25 25 25 25 25 25 25 25 25 25 30 30 30 30 30 5 15 15 20 20 20 20 Final Carried 30 | 6 10 25 25 25 25 25 25 25 24 25 25 25 25 25 24 30 29 28 29 30 5 10 14 17 20 20 20 Class Distribution -------------------- 20% | Botlord-Mutant 18% | Bothacker-Mutant 12% | Mutant 11% | Tank 10% | Botlord-Tank 9% | Botlord-Gunner 4% | Hacker-Mutant 3% | Bothacker-Tank Dominant Class ---------------- Mutant | -10/Materials Mutant | -10/Subcaves Scavenger-Tank | -8/Materials Tank | -8/Garrison Tank | -8/Materials Bothacker-Mutant | -8/Garrison Bothacker-Mutant | -7/Factory Bothacker-Mutant | -7/Garrison Bothacker-Mutant | -7/Factory Bothacker-Mutant | -7/Garrison Botlord-Tank | -6/Factory Botlord-Tank | -6/Extension Botlord-Gunner | -6/Cetus Botlord-Tank | -6/Archives Botlord-Gunner | -6/Hub_04(d) Botlord-Gunner | -6/Garrison Botlord-Mutant | -5/Factory Botlord-Mutant | -5/Waste Botlord-Mutant | -5/Factory Botlord-Mutant | -5/Garrison Botlord-Mutant | -4/Factory Mutant | -3/Research Hacker-Skirmisher | -3/Testing Hacker-Mutant | -2/Research Hacker-Mutant | -1/Access Skirmisher | -1/Garrison Bothacker-Gladiator | -1/Access Resources | -11 -10 -10 -8 -8 -8 -8 -7 -7 -7 -7 -6 -6 -6 -6 -6 -6 -5 -5 -5 -5 -4 -3 -3 -2 -1 -1 -1 ----------- Run | Yrd Mat Sub Mat Gar Mat Gar Fac Gar Fac Gar Fac Ext Cet Arc Hub Gar Fac Was Fac Gar Fac Res Tes Res Acc Gar Acc Matter Collected 15830 | 239 91 170 705 1212 1184 1207 183 954 85 615 167 561 192 10 134 721 2181 . 354 2178 919 358 109 348 173 222 558 Remotely 1334 | . . . . . . . . . . . . . . . . . . . . 836 498 . . . . . . Salvage Created 15726 | 55 149 192 723 1415 1063 1305 51 771 282 1343 35 992 120 . 60 1053 872 . 148 469 714 183 1073 417 528 684 1029 Parts 648 | 11 17 8 40 68 52 64 1 30 16 52 1 27 8 . 7 45 32 . . 8 5 7 42 21 12 21 53 Haulers Intercepted 6 | . 1 . . . 2 . . . . . . . . . . . . . . . . . . . 3 . . Recyclers Shooed 14 | 1 1 . . . 2 . . . 1 . . 1 . . . . 3 . 1 . 1 . 1 . 1 . 1 Parts Field Recycled . | . . . . . . . . . . . . . . . . . . . . . . . . . . . . Retrieved Matter . | . . . . . . . . . . . . . . . . . . . . . . . . . . . . Parts Self-Destructed 1 | . . 1 . . . . . . . . . . . . . . . . . . . . . . . . . Prevented . | . . . . . . . . . . . . . . . . . . . . . . . . . . . . Parts Restored . | . . . . . . . . . . . . . . . . . . . . . . . . . . . . Kills | -11 -10 -10 -8 -8 -8 -8 -7 -7 -7 -7 -6 -6 -6 -6 -6 -6 -5 -5 -5 -5 -4 -3 -3 -2 -1 -1 -1 ------- Run | Yrd Mat Sub Mat Gar Mat Gar Fac Gar Fac Gar Fac Ext Cet Arc Hub Gar Fac Was Fac Gar Fac Res Tes Res Acc Gar Acc Combat Hostiles Destroyed 185 | . 5 3 14 28 14 23 1 9 5 22 1 10 . . 1 12 4 . . 7 . . 8 2 1 8 7 Melee 16 | . . . . . . . . . . . . . . . . 2 1 . . 1 . . 2 2 1 . 7 Guns 92 | . 4 3 14 28 14 23 1 5 . . . . . . . . . . . . . . . . . . . Cannons 40 | . . . . . . . . . 1 10 1 10 . . 1 4 3 . . 2 . . . . . 8 . AOE 32 | . . . . . . . . 4 4 10 . . . . . 5 . . . 4 . . 5 . . . . Classes Destroyed 21 | 1 3 4 3 2 3 3 . . . . . 1 . . . . . . . . . . 1 . . . . Worker 24 | . . . . . 1 . . . 3 . 1 . . . 2 . 5 . 1 . 2 . 5 1 . . 3 Builder 5 | . . . 1 . 1 . . . 1 . . . . . . . . . . . . . 1 . . . 1 Tunneler 5 | 3 . . . . . . . . . . . . . . . . . . . . . . . 2 . . . Hauler 6 | . 1 . . . 2 . . . . . . . . . . . . . . . . . . . 3 . . Recycler 29 | . . . . . 4 . . . . . . 4 . . . . 4 . 1 . 6 1 2 2 1 . 4 Operator 3 | . . . . . 1 . . . . . . . . . . . . . . . . 2 . . . . . Watcher 5 | . . . . . . 1 . 1 . . . . 1 . . . 1 . . 1 . . . . . . . Swarmer 35 | . 3 . . 5 2 6 . 3 . 3 . . . . . 5 . . . 6 . . 2 . . . . Cutter 4 | . . . . 2 . . . . . . . . . . . 2 . . . . . . . . . . . Grunt 71 | . 2 . 8 13 8 5 . 2 2 11 1 3 . . . 2 1 . . 1 . . 6 . 1 5 . Brawler 7 | . . . . . . 5 . . . 1 . . . . . 1 . . . . . . . . . . . Duelist 1 | . . . 1 . . . . . . . . . . . . . . . . . . . . . . . . Sentry 31 | . . 1 4 7 4 4 . 1 1 3 . 5 . . . . . . . . . . . . . 1 . Specialist 4 | . . . . 1 . . . 1 . 2 . . . . . . . . . . . . . . . . . Hunter 7 | . . . 1 . . . 1 1 2 . . . . . . 2 . . . . . . . . . . . Programmer 23 | . . . . . . 3 . 1 . 4 . . . . 1 . 3 . . . . . . 2 . 2 7 Behemoth 2 | . . . . . . . . . . . . 2 . . . . . . . . . . . . . . . Investigator 1 | . . . . . . . . . . . . . . . . . . . . . . . 1 . . . . Artisan 1 | . . 1 . . . . . . . . . . . . . . . . . . . . . . . . . Cobbler 1 | . . 1 . . . . . . . . . . . . . . . . . . . . . . . . . Subdweller 2 | . . 2 . . . . . . . . . . . . . . . . . . . . . . . . . Best Kill Streak 14 | 2 3 1 4 5 7 5 1 4 3 3 1 4 1 . 2 2 3 . 1 4 2 1 14 2 3 3 3 Combat Bots Only 6 | . 3 1 4 5 6 5 1 4 2 3 1 3 . . 1 2 2 . . 4 . . 6 2 1 3 3 Max Kills in Single Turn 6 | 1 1 1 2 2 2 1 1 1 3 3 1 2 1 . 1 2 1 . 1 4 1 1 6 1 1 1 1 Gunslinging 1 | . . . 1 1 . . . . . . . . . . . . . . . . . . . . . . . Exploded 4 | . . . . . . . . 1 1 3 . . . . . 2 . . . 4 . . 3 . . . . Melee 1 | . . . . . . . . . . . . . . . . 1 1 . . 1 . . 1 1 1 . 1 Uniques/NPCs Destroyed 1 | . . . . . . . . . . . . . 1 . . . . . . . . . . . . . . A7 (-6/Cetus) Combat | -11 -10 -10 -8 -8 -8 -8 -7 -7 -7 -7 -6 -6 -6 -6 -6 -6 -5 -5 -5 -5 -4 -3 -3 -2 -1 -1 -1 -------- Run | Yrd Mat Sub Mat Gar Mat Gar Fac Gar Fac Gar Fac Ext Cet Arc Hub Gar Fac Was Fac Gar Fac Res Tes Res Acc Gar Acc Hostile Shots Fired 1598 | . 28 20 45 89 35 75 4 120 22 69 9 108 2 . 33 54 59 . 3 44 331 39 143 62 14 72 118 Missed 490 | . 7 4 10 16 7 22 2 36 7 24 4 45 2 . 6 17 14 . . 9 94 16 58 18 5 20 47 Hits 1108 | . 21 16 35 73 28 53 2 84 15 45 5 63 . . 27 37 45 . 3 35 237 23 85 44 9 52 71 Melee 26 | . . . . 3 . 2 . 1 . . . . . . . 6 . . . . 4 . 1 9 . . . Projectile 1082 | . 21 16 35 70 28 51 2 83 15 45 5 63 . . 27 31 45 . 3 35 233 23 84 35 9 52 71 AOE 17 | . . . . 1 . . . . . . . . . . . . . . . . . . 1 . . . 15 Critical Strikes 39 | . . 1 2 9 . 2 . . . . . 1 1 . 1 2 2 . . 1 3 2 4 4 1 1 2 Part Disruptions 3 | . . . . . . . . . . . . . . . . . 1 . . . 1 . . . . . 1 Damage Taken 16853 | . 317 361 480 901 355 600 34 1010 271 771 98 605 29 . 268 824 1089 . 69 757 2783 315 1201 968 127 1206 1414 Core 3036 | . 50 112 79 139 67 55 . 73 97 93 . 83 . . 41 19 143 . 28 205 1100 118 136 154 26 76 142 Absorbed by Shields 1047 | . . . 88 219 84 42 . 16 . . . 14 28 . . 18 55 . . . . . 483 . . . . Redirected to Shielding 117 | . . . . . . . . . 36 81 . . . . . . . . . . . . . . . . . Regen/Repaired (Parts) 1828 | . . . . . . . 55 109 . . 52 . 42 29 63 396 521 . . 313 248 . . . . . . Core Remaining (%) 63 | 100 . 35 . . . 38 . . . 62 . . . . . 83 . . . 62 4 . 80 89 . . 84 Volleys Fired 887 | 6 15 15 46 88 58 121 3 131 14 81 15 41 7 1 18 47 28 6 1 67 6 7 14 2 2 31 16 Largest 3 | 2 2 2 3 3 3 3 3 2 1 1 1 1 1 1 1 1 2 1 1 1 1 1 1 1 1 3 2 Hottest 315 | 90 100 60 100 80 75 75 75 85 85 90 65 65 65 5 65 65 79 7 35 43 105 47 80 120 120 315 210 Shots Fired 1473 | 12 29 30 118 244 174 244 7 149 13 81 15 41 7 1 18 47 31 6 1 68 6 7 14 2 2 88 18 Gun 908 | 12 28 30 109 244 174 185 6 120 . . . . . . . . . . . . . . . . . . . Cannon 303 | . . . . . . . . 5 1 46 7 26 7 . 8 23 11 . 1 53 1 7 1 1 2 88 15 Launcher 54 | . . . . . . . . 8 7 20 . . . . . 9 . . . 1 . . 9 . . . . Special 208 | . 1 . 9 . . 59 1 16 5 15 8 15 . 1 10 15 20 6 . 14 5 . 4 1 . . 3 Kinetic 957 | . 5 25 109 244 174 185 6 120 . 13 7 26 7 . 8 17 3 . . . . 7 1 . . . . Thermal 320 | 12 24 5 9 . . 55 . 5 1 33 . 1 . . . 6 8 . 1 53 1 . . 1 2 88 15 Explosive 6 | . . . . . . . . 1 . 2 . . . . . 2 . . . 1 . . . . . . . Electromagnetic 48 | . . . . . . . . 7 7 18 . . . . . 7 . . . . . . 9 . . . . Robot Hit Streak 40 | 2 7 12 8 16 14 28 3 40 4 15 7 20 6 5 6 9 19 6 . 38 11 . 4 1 . 7 3 Robot Miss Streak 7 | 2 2 1 7 7 4 5 1 2 1 2 2 3 1 . 2 2 2 1 . 3 2 . 1 . . 4 2 Penetration Max 1 | . . . . . . . . . . . . 1 1 . . . . . . . . . . . . . . Secondary Targets 17 | . . . 3 7 1 6 . . . . . . . . . . . . . . . . . . . . . Max Gunslinging Chain 1 | . . . 1 1 1 1 . . . . . . . . . . . . . . . . . . . . . Shots Hit Robots 1142 | 6 18 29 59 165 106 172 5 130 7 46 15 38 15 1 11 55 43 5 3 49 15 3 12 24 11 55 44 Core Hits 463 | 4 8 9 27 64 36 64 3 39 12 36 . 15 6 . 3 24 11 . . 13 1 2 43 9 6 15 13 Critical Kills 6 | . . . 1 . 1 . . 2 . 2 . . . . . . . . . . . . . . . . . Critical Parts Destroyed 8 | . . . . . 1 . . 3 . . . . . . . . . . 2 1 1 . . . . . . Critical Strikes 41 | 1 1 . 1 . 3 2 . 5 . 3 1 4 2 . . 2 2 . 2 1 1 . 1 3 1 . 5 Burn 2 | 1 1 . . . . . . . . . . . . . . . . . . . . . . . . . . Meltdown 2 | . . . . . . . . . . 2 . . . . . . . . . . . . . . . . . Destroy 6 | . . . 1 . 3 . . 2 . . . . . . . . . . . . . . . . . . . Blast 9 | . . . . . . . . . . 1 1 4 1 . . 2 . . . . . . . . . . . Smash 7 | . . . . . . . . 3 . . . . . . . . . . 2 1 1 . . . . . . Sever 12 | . . . . . . 2 . . . . . . 1 . . . 2 . . . . . . 2 . . 5 Impale 3 | . . . . . . . . . . . . . . . . . . . . . . . 1 1 1 . . Melee Attacks 432 | . . 6 . 29 6 29 7 41 2 18 3 7 9 . 9 41 31 . 4 8 12 14 8 42 20 2 84 Impact 130 | . . . . 29 6 29 7 33 . . . . . . . . 2 . 4 8 12 . . . . . . Slashing 215 | . . 6 . . . . . 8 2 18 3 7 9 . 9 41 29 . . . . . . 12 7 1 63 Piercing 87 | . . . . . . . . . . . . . . . . . . . . . . 14 8 30 13 1 21 Sneak Attacks 75 | . . 2 . . 1 1 . 1 . . 2 3 8 . 2 1 14 . 3 1 7 2 3 6 7 . 11 Combat Hostiles . | . . . . . . . . . . . . . . . . . . . . . . . . . . . . Follow-up Attacks 38 | . . . . . . . . . . . . . . . . . . . . . . . . 10 5 . 23 Damage Inflicted 35851 | 71 213 556 1127 3066 1991 2493 40 2733 910 1932 472 1740 925 . 281 3217 1803 . 268 1762 946 347 2030 1277 806 2112 2733 Guns 9286 | 71 213 401 1127 2487 1875 1892 40 1180 . . . . . . . . . . . . . . . . . . . Cannons 7745 | . . . . . . . . 31 31 853 336 1427 383 . 97 997 284 . . 1125 35 . . . . 2112 34 Explosions 5167 | . . . . . . . . 419 879 1043 . . . . . 558 . . . 533 . . 1735 . . . . Melee 13094 | . . 155 . 579 116 58 . 1103 . 36 136 297 542 . 184 1662 1519 . 268 104 911 347 295 1277 806 . 2699 Ramming . | . . . . . . . . . . . . . . . . . . . . . . . . . . . . Kinetic 12370 | . 21 358 1127 2487 1875 1892 40 1180 . 179 336 1427 383 . 97 933 35 . . . . . . . . . . Thermal 6348 | 71 192 43 . . . 543 . 31 582 762 . 16 . . . 64 249 . . 1125 35 . 489 . . 2112 34 Explosive 1266 | . . . . . . . . 141 . 267 . . . . . 325 . . . 533 . . . . . . . Electromagnetic 2773 | . . . . . . . . 278 328 688 . . . . . 233 . . . . . . 1246 . . . . Impact 3139 | . . . . 579 116 58 . 1103 . . . . . . . . . . 268 104 911 . . . . . . Slashing 7416 | . . 155 . . . . . . . 36 136 297 542 . 184 1662 1519 . . . . . . 299 290 . 2296 Piercing 2539 | . . . . . . . . . . . . . . . . . . . . . . 347 295 978 516 . 403 Highest Corruption 43 | . . . 1 1 1 1 . 2 4 8 . . . . . . 2 14 14 14 43 2 3 1 . 3 5 Average Corruption 4 | . . . 1 1 1 1 . 1 2 7 . . . . . . 1 9 14 14 8 1 2 1 . 2 2 Corruption Purged 11 | . . . . . . . . . 1 . . . . . . . . . . . . 2 . . . . 8 Corruption Blocked . | . . . . . . . . . . . . . . . . . . . . . . . . . . . . Effects 272 | . . . 6 12 10 13 . 25 3 51 . . . . . . 20 7 17 61 17 4 1 1 . 4 20 Message Errors 71 | . . . 1 4 4 4 . 5 . 15 . . . . . . 10 3 3 12 2 2 . . . . 6 Matter Fused 65 | . . . 2 4 1 2 . 3 2 8 . . . . . . 4 3 4 20 3 1 1 . . 3 4 Heat Flow Errors 40 | . . . 1 1 2 2 . 1 . 12 . . . . . . 3 . 3 10 1 . . 1 . . 3 Energy Discharges 31 | . . . . 2 2 4 . 5 . 5 . . . . . . 2 1 1 5 1 . . . . . 3 Parts Rejected 5 | . . . . . . . . 1 . 1 . . . . . . . . . . 1 . . . . 1 1 Parts Fused 3 | . . . . . . . . 1 . . . . . . . . . . 1 1 . . . . . . . Data Loss (minor) 32 | . . . 1 1 . 1 . 6 . 8 . . . . . . 1 . 3 9 . 1 . . . . 1 Data Loss (major) 5 | . . . . . 1 . . . . 1 . . . . . . . . 1 1 . . . . . . 1 Misfires 3 | . . . . . . . . 1 . . . . . . . . . . . 1 . . . . . . 1 Alerts 4 | . . . 1 . . . . 1 . 1 . . . . . . . . . 1 . . . . . . . Misdirections 11 | . . . . . . . . . . . . . . . . . . . 1 1 9 . . . . . . Weapon Failures 2 | . . . . . . . . 1 1 . . . . . . . . . . . . . . . . . . Overload Shots . | . . . . . . . . . . . . . . . . . . . . . . . . . . . . Overflow Damage 3427 | . . . . 18 76 8 . 209 15 75 70 64 . . . 163 394 . 238 194 432 132 247 178 11 162 741 Projectiles 342 | . . . . . . . . . . 50 4 2 . . . 44 1 . . 70 9 . . . . 162 . Explosions 172 | . . . . . . . . 7 15 25 . . . . . 43 . . . 59 . . 23 . . . . Melee 2913 | . . . . 18 76 8 . 202 . . 66 62 . . . 76 393 . 238 65 423 132 224 178 11 . 741 Knockbacks 12 | . . . . . . . . . . . 3 1 . . . 2 . . 1 . 5 . . . . . . Impact 4 | . . . . . . . . . . . . . . . . . . . 1 . 3 . . . . . . Kinetic 6 | . . . . . . . . . . . 3 1 . . . 2 . . . . . . . . . . . Secondary 2 | . . . . . . . . . . . . . . . . . . . . . 2 . . . . . . Self-Inflicted Damage 293 | . . . . . . . . . 19 157 . . . . . 117 . . . . . . . . . . . Shots 10 | . . . . . . . . . 1 5 . . . . . 4 . . . . . . . . . . . Rammed . | . . . . . . . . . . . . . . . . . . . . . . . . . . . . Targets Rammed . | . . . . . . . . . . . . . . . . . . . . . . . . . . . . Kicked . | . . . . . . . . . . . . . . . . . . . . . . . . . . . . Crushed . | . . . . . . . . . . . . . . . . . . . . . . . . . . . . Highest Temperature 459 | 60 178 1 267 330 459 297 . 146 34 234 93 97 45 . 99 190 165 . 226 234 83 86 101 252 56 24 152 Average Temperature 73 | 27 68 1 71 125 94 84 . 20 20 74 37 28 18 . 39 60 57 . 99 85 41 32 21 97 32 9 44 Received Heat Transfer 2413 | . 90 33 212 492 142 159 . 186 36 51 27 129 . . 93 29 18 . . 72 15 67 184 63 18 225 72 Effects 7 | . . . 1 1 2 . . . . . . . . . . . . . . . . . . 3 . . . Energy Bleed 2 | . . . 1 1 . . . . . . . . . . . . . . . . . . . . . . . Interference 4 | . . . . . 1 . . . . . . . . . . . . . . . . . . 3 . . . Matter Decay 1 | . . . . . 1 . . . . . . . . . . . . . . . . . . . . . . Siege Activations . | . . . . . . . . . . . . . . . . . . . . . . . . . . . . Martial Activations . | . . . . . . . . . . . . . . . . . . . . . . . . . . . . Shielding Activations . | . . . . . . . . . . . . . . . . . . . . . . . . . . . . Robots Disrupted . | . . . . . . . . . . . . . . . . . . . . . . . . . . . . Combat Hostiles . | . . . . . . . . . . . . . . . . . . . . . . . . . . . . Robots Corrupted 12 | . . . . 1 . 1 . 1 . 2 . . . . . 1 . . 1 . 4 . 1 . . . . Combat Hostiles 4 | . . . . . . . . . . 2 . . . . . 1 . . . . . . 1 . . . . Parts Fried 36 | . . . . . 1 3 . 5 . 2 . . . . . 2 . . 3 1 11 . 8 . . . . Impact Corruptions 27 | . . . . 1 2 1 . 4 . . . . . . . . . . 6 1 12 . . . . . . Robots Melted 3 | . 1 . . . . . . . . 2 . . . . . . . . . . . . . . . . . Combat Hostiles 1 | . 1 . . . . . . . . . . . . . . . . . . . . . . . . . . Parts Melted 16 | 1 . . . . . 1 . . . 3 . 1 . . . . . . . 3 . . . . . 7 . Heat Transferred 8998 | 260 582 100 . . . 1850 . 37 537 914 . 37 . . . 100 350 . . 1750 9 . 400 . . 2035 37 Parts Sabotaged 3 | . . . . . . . . . . . . . . . . . . . . . . . 3 . . . . Parts Stolen . | . . . . . . . . . . . . . . . . . . . . . . . . . . . . Parts Stripped . | . . . . . . . . . . . . . . . . . . . . . . . . . . . . Power Chain Reactions 14 | . . . . . . . . . 2 7 . . . . . 1 . . . . . . 4 . . . . Alert | -11 -10 -10 -8 -8 -8 -8 -7 -7 -7 -7 -6 -6 -6 -6 -6 -6 -5 -5 -5 -5 -4 -3 -3 -2 -1 -1 -1 ------- Run | Yrd Mat Sub Mat Gar Mat Gar Fac Gar Fac Gar Fac Ext Cet Arc Hub Gar Fac Was Fac Gar Fac Res Tes Res Acc Gar Acc Maximum Alert Level 5 | . . . . 4 2 4 2 5 3 4 3 1 . . 2 2 2 . . 3 2 . 1 . . 1 1 Low Security (%) 39 | 100 100 . 100 17 . 2 . 7 . . . 87 100 100 79 14 35 100 100 17 16 100 83 100 100 81 74 Level 1 24 | . . . . 20 80 22 48 22 27 . . 12 . . 13 25 55 . . 19 74 . 16 . . 18 25 Level 2 18 | . . . . 36 19 30 51 2 30 16 26 . . . 6 60 8 . . 61 8 . . . . . . Level 3 9 | . . . . 24 . 30 . 27 42 23 73 . . . . . . . . 1 . . . . . . . Level 4 7 | . . . . . . 15 . 30 . 59 . . . . . . . . . . . . . . . . . Level 5 . | . . . . . . . . 9 . . . . . . . . . . . . . . . . . . . High Security . | . . . . . . . . . . . . . . . . . . . . . . . . . . . . Max Security . | . . . . . . . . . . . . . . . . . . . . . . . . . . . . Peak Influence 1778 | 5 73 . 110 1101 536 1170 613 1778 1021 1419 801 256 92 112 433 669 486 77 101 750 487 185 288 174 96 220 275 Initial 933 | . . . . 39 536 189 613 186 933 423 744 256 1 8 . 25 350 77 . 56 361 90 80 122 96 6 108 Average 392 | . 21 . 41 538 357 663 427 910 672 1066 717 56 40 49 149 398 241 28 11 446 274 116 104 93 50 112 176 Influence Increases 14062 | 15 159 20 440 1072 471 1061 87 1732 440 1136 259 517 238 134 788 824 897 . 156 934 631 365 418 352 62 264 590 Destroy 0b10 Robot/C 5890 | . 100 20 280 560 280 460 60 760 120 550 135 240 120 60 255 375 450 . 45 420 180 . 135 30 15 135 105 Destroy 0b10 Robot/NC 467 | 15 5 . 5 10 45 20 . 25 20 10 8 16 4 . 16 24 72 . 8 16 36 12 32 20 16 . 32 Destroy Leader 764 | . 22 . 80 20 74 40 10 40 40 50 32 8 . . 64 32 112 . 16 24 24 . 24 8 4 16 24 Allied During Kill 1299 | . . . . . . . . 221 28 12 44 109 108 60 211 49 156 . 7 94 191 . . . . 9 . Trap Triggered on 0b10 16 | . . . . . . . . . . . . . . . . . . . . . . 16 . . . . . Successful Hack 368 | . 16 . 19 30 19 14 12 21 25 20 18 58 . . 10 . 11 . . 11 2 46 11 19 . 6 . Select Force Hacks 122 | . . . . . . . . . . . . . . . 38 . . . . . 38 23 . 23 . . . Disable Machine 633 | . . . 15 . . . . 45 165 72 . 48 . 12 24 48 12 . 36 36 48 . 60 . . . 12 Anti-Garrison Action 1956 | . . . . 350 . 300 . 450 . 251 . . . . 113 227 . . . 227 . . . . . 38 . Destroy Structure 1170 | . 1 . 11 27 8 122 5 125 42 141 10 14 6 2 45 57 72 . 44 70 64 28 36 36 15 60 129 Partial Spotted 84 | . . . . . . . . . . . . . . . . . . . . . . 12 . . 12 . 60 Lose Combat Pursuer 1293 | . 15 . 30 75 45 105 . 45 . 30 12 24 . . 12 12 12 . . 36 48 228 120 216 . . 228 Influence Decreases 13886 | 15 159 20 380 31 1280 183 991 220 1613 322 1155 1036 220 156 752 191 1346 220 75 325 1149 394 343 410 214 92 594 Entered New Map 4518 | . . . . 21 565 103 557 80 845 182 675 267 3 14 . 11 319 143 . 25 329 82 63 96 64 2 72 Time Decay 5496 | 15 159 20 360 . 565 . 334 . 198 . 270 459 151 130 392 . 607 57 51 . 380 302 180 254 130 . 482 Lost Part 611 | . . . 20 10 . . . 40 10 60 . 5 2 . . 60 30 . 4 20 130 . 80 30 20 50 40 Lost Ally 2211 | . . . . . . 80 100 100 110 80 60 155 64 12 210 120 390 20 20 280 310 10 20 30 . 40 . Purge Threat 1050 | . . . . . 150 . . . 450 . 150 150 . . 150 . . . . . . . . . . . . Squads Dispatched 65 | . 1 . 4 . 2 . 1 . 4 . 3 . . . 8 . 13 . 2 . 4 6 4 3 1 . 9 Investigation 7 | . 1 . 1 . . . . . . . 1 . . . 1 . . . . . 1 1 . 1 . . . Extermination 19 | . . . . . . . 1 . 1 . 1 . . . 1 . 3 . 1 . 2 . 1 2 1 . 5 Reinforcement 27 | . . . 3 . 2 . . . 1 . . . . . 3 . 8 . 1 . 1 5 2 . . . 1 Assault 5 | . . . . . . . . . 1 . 1 . . . 2 . . . . . . . 1 . . . . Garrison 7 | . . . . . . . . . 1 . . . . . 1 . 2 . . . . . . . . . 3 Intercept . | . . . . . . . . . . . . . . . . . . . . . . . . . . . . Searches Triggered . | . . . . . . . . . . . . . . . . . . . . . . . . . . . . Unchained Authorized 3 | . . . . . . . . . . . . . . . . . . . . . 1 . 1 . 1 . . Construction Impeded 2 | . . . . . . . . . . . . . . . 1 . . . . . . . 1 . . . . Haulers Reinforced 1 | . . . . . . . . . . . . . . . . . . . . . . 1 . . . . . Active Scanning Responses . | . . . . . . . . . . . . . . . . . . . . . . . . . . . . Cargo Convoy Interrupts 2 | . . . . . . . . . . . . . . . . . 1 . . . 1 . . . . . . Stealth | -11 -10 -10 -8 -8 -8 -8 -7 -7 -7 -7 -6 -6 -6 -6 -6 -6 -5 -5 -5 -5 -4 -3 -3 -2 -1 -1 -1 --------- Run | Yrd Mat Sub Mat Gar Mat Gar Fac Gar Fac Gar Fac Ext Cet Arc Hub Gar Fac Was Fac Gar Fac Res Tes Res Acc Gar Acc Distress Signals 36 | . 2 . 6 . 3 . . . . . . 1 . . 1 . 7 . . . 1 8 2 5 . . . Communications Jammed . | . . . . . . . . . . . . . . . . . . . . . . . . . . . . Distress Signals . | . . . . . . . . . . . . . . . . . . . . . . . . . . . . Times Spotted 600 | . 11 4 25 30 27 31 1 35 11 38 8 21 10 4 27 30 58 6 3 39 21 34 30 23 2 9 62 Peak Tracking Total 13 | . 4 1 5 7 4 5 1 7 3 6 5 5 5 2 6 7 6 3 2 6 13 9 11 7 2 4 10 Tactical Retreats 52 | . 1 . 2 2 2 5 . 3 . 1 1 2 . . 1 1 1 . . 1 2 4 5 9 . . 9 ECM-based Alert Blocks 3 | . . . . . . . . . . . . . . . . . . . . . . . . . . . 3 Traps | -11 -10 -10 -8 -8 -8 -8 -7 -7 -7 -7 -6 -6 -6 -6 -6 -6 -5 -5 -5 -5 -4 -3 -3 -2 -1 -1 -1 ------- Run | Yrd Mat Sub Mat Gar Mat Gar Fac Gar Fac Gar Fac Ext Cet Arc Hub Gar Fac Was Fac Gar Fac Res Tes Res Acc Gar Acc Traps Triggered 85 | . 1 1 1 13 . 15 . 10 3 10 . 6 . . . 7 2 . . 10 1 1 1 . . 3 . Indirectly 3 | . . . . . . . . . . 3 . . . . . . . . . . . . . . . . . Trap Hack Attempts . | . . . . . . . . . . . . . . . . . . . . . . . . . . . . Triggered . | . . . . . . . . . . . . . . . . . . . . . . . . . . . . Disarmed . | . . . . . . . . . . . . . . . . . . . . . . . . . . . . Reprogrammed 14 | . . . . . . . . . . . . . . . . . . . . . . 14 . . . . . Reused 2 | . . . . . . . . . . . . . . . . . . . . . . 2 . . . . . Traps Extracted . | . . . . . . . . . . . . . . . . . . . . . . . . . . . . Installed . | . . . . . . . . . . . . . . . . . . . . . . . . . . . . Triggered 2 | . . . . . . . . . . . . . . . . . . . . . . 2 . . . . . Most Traps Carried 1 | . . 1 1 1 . . . . . . . . . . . . . . . . . . . . . . . Objects Rigged 1 | . . . . . . . . . . . . . . . 1 . . . . . . . . . . . . Machines | -11 -10 -10 -8 -8 -8 -8 -7 -7 -7 -7 -6 -6 -6 -6 -6 -6 -5 -5 -5 -5 -4 -3 -3 -2 -1 -1 -1 ---------- Run | Yrd Mat Sub Mat Gar Mat Gar Fac Gar Fac Gar Fac Ext Cet Arc Hub Gar Fac Was Fac Gar Fac Res Tes Res Acc Gar Acc Machines Disabled 76 | . . 1 1 5 . 3 . 8 11 9 . 4 . 1 3 8 1 . 3 7 4 . 5 . . 1 1 Max in Single Turn 6 | . . 1 1 1 . 1 . 1 6 1 . 1 . . . 1 . . . 1 . . 1 . . 1 1 Garrison Access 2 | . . . . . . . . . . . 1 . . . 1 . . . . . . . . . . . . Garrison Relay 27 | . . . . 5 . 4 . 5 . 4 . . . . . 4 . . . 4 . . . . . 1 . Network Hub 1 | . . . . . . . . . . . . . . . 1 . . . . . . . . . . . . Energy Cycler 1 | . . . . . . . . . . . . . . . . . . . . . . . . . . . 1 Machines Repaired . | . . . . . . . . . . . . . . . . . . . . . . . . . . . . Machines Dismantled 4 | . . . . . . . . . . . . 4 . . . . . . . . . . . . . . . Machines Sabotaged 1 | . . . . . . . . . . . . . . . 1 . . . . . . . . . . . . Overloaded Fab Kills . | . . . . . . . . . . . . . . . . . . . . . . . . . . . . Hacking | -11 -10 -10 -8 -8 -8 -8 -7 -7 -7 -7 -6 -6 -6 -6 -6 -6 -5 -5 -5 -5 -4 -3 -3 -2 -1 -1 -1 --------- Run | Yrd Mat Sub Mat Gar Mat Gar Fac Gar Fac Gar Fac Ext Cet Arc Hub Gar Fac Was Fac Gar Fac Res Tes Res Acc Gar Acc Machines Accessed 114 | . 5 1 7 5 10 1 6 3 6 2 7 17 . . 8 1 6 . 4 3 3 8 1 7 2 1 . Terminals 77 | . 5 . 6 5 6 1 2 3 3 2 5 16 . . 7 1 1 . . 3 . 5 1 3 1 1 . Fabricators 4 | . . . . . . . 1 . 1 . . . . . . . . . . . 1 . . 1 . . . Repair Stations 2 | . . . . . . . 1 . . . . . . . . . 1 . . . . . . . . . . Recycling Units 13 | . . . . . 1 . 1 . . . 1 1 . . . . 3 . 2 . 1 1 . 2 . . . Scanalyzers 7 | . . . . . 2 . . . 1 . . . . . . . 1 . 1 . 1 1 . . . . . Garrison Access 10 | . . . 1 . 1 . 1 . 1 . 1 . . . 1 . . . 1 . . 1 . 1 1 . . Total Hacks 274 | . 20 1 18 7 24 3 10 5 13 5 16 36 . . 16 2 10 . 9 8 7 38 3 18 4 1 . Successful 143 | . 10 1 12 2 15 1 3 2 10 2 9 16 . . 7 . 5 . 3 1 3 20 3 14 3 1 . Failed 130 | . 10 . 6 5 8 2 7 3 3 3 7 20 . . 9 2 5 . 6 7 4 18 . 4 1 . . Catastrophic 29 | . 1 . . 1 . 1 3 1 1 . 3 3 . . 2 . 3 . 3 3 . 2 . 1 1 . . Database Lockouts 1 | . . . . . 1 . . . . . . . . . . . . . . . . . . . . . . Manual 84 | . 16 . 15 . 12 . 2 . . 1 1 5 1 . 7 . 3 . . . 4 9 . 7 1 . . Terminals 198 | . 20 . 16 7 15 3 3 5 8 5 11 35 . . 15 2 2 . . 8 . 28 3 9 2 1 . Fabricators 10 | . . . . . . . 2 . 1 . . . . . . . . . . . 3 . . 4 . . . Repair Stations 2 | . . . . . . . 1 . . . . . . . . . 1 . . . . . . . . . . Recycling Units 31 | . . . . . 2 . 3 . . . 3 1 . . . . 6 . 6 . 1 6 . 3 . . . Scanalyzers 17 | . . . . . 6 . . . 3 . . . . . . . 1 . 2 . 3 2 . . . . . Garrison Access 15 | . . . 2 . 1 . 1 . 1 . 2 . . . 1 . . . 1 . . 2 . 2 2 . . Terminal Hacks 58 | . 2 1 . 2 1 1 . 2 6 2 5 12 . . 2 . . . . 1 . 13 3 4 . 1 . Part Schematic 2 | . . . . . . . . . . . . 1 . . . . . . . . . . 1 . . . . Robot Analysis 1 | . . . . . . . . . . . 1 . . . . . . . . . . . . . . . . Prototype ID Bank 6 | . 1 . . . . . . . . . 1 3 . . . . . . . . . . . 1 . . . Open Door 7 | . . . . . . . . 1 . 1 . 4 . . . . . . . . . . . . . 1 . Level Access Points 1 | . . . . . . . . . . . . . . . . . . . . . . . . 1 . . . Branch Access Points 1 | . . . . . . . . . . . . . . . . . . . . . . 1 . . . . . Emergency Access Points 7 | . . . . . . 1 . 1 1 1 . . . . . . . . . 1 . 1 1 . . . . Machine Index 1 | . . . . . . . . . . . . . . . . . . . . . . 1 . . . . . Terminal Index 1 | . . . . . . . . . 1 . . . . . . . . . . . . . . . . . . Garrison Index 2 | . . . . . . . . . 1 . . . . . . . . . . . . 1 . . . . . Unreport Threat 7 | . . . . . 1 . . . 3 . 1 1 . . 1 . . . . . . . . . . . . Locate Traps 4 | . . . . . . . . . . . . 1 . . . . . . . . . 2 . 1 . . . Reprogram Traps 3 | . . . . . . . . . . . . . . . . . . . . . . 3 . . . . . Surveillance Status 1 | . . . . . . . . . . . . . . . . . . . . . . 1 . . . . . Patrol Status 1 | . . . . . . . . . . . . . . . . . . . . . . 1 . . . . . Hauler Manifests 1 | . . . . . . . . . . . . 1 . . . . . . . . . . . . . . . Registered Components 2 | . . . . . . . . . . . 1 . . . . . . . . . . . . 1 . . . Registered Prototypes 1 | . 1 . . . . . . . . . . . . . . . . . . . . . . . . . . Zone Layout 5 | . . . . . . . . . . . 1 1 . . 1 . . . . . . 2 . . . . . Patrol Navigation 1 | . . . . 1 . . . . . . . . . . . . . . . . . . . . . . . Security Stations 1 | . . . . 1 . . . . . . . . . . . . . . . . . . . . . . . Proto ID Catalog 1 | . . 1 . . . . . . . . . . . . . . . . . . . . . . . . . Protovariant Controls 1 | . . . . . . . . . . . . . . . . . . . . . . . 1 . . . . Fabricator Hacks 2 | . . . . . . . 1 . . . . . . . . . . . . . . . . 1 . . . Network Status 2 | . . . . . . . 1 . . . . . . . . . . . . . . . . 1 . . . Repair Station Hacks . | . . . . . . . . . . . . . . . . . . . . . . . . . . . . Recycling Unit Hacks 10 | . . . . . 1 . . . . . 1 1 . . . . 2 . 1 . . 1 . 3 . . . Process 1 | . . . . . . . . . . . . . . . . . . . . . . . . 1 . . . Retrieve Matter 1 | . . . . . . . . . . . . . . . . . . . . . . . . 1 . . . Retrieve Components 8 | . . . . . 1 . . . . . 1 1 . . . . 2 . 1 . . 1 . 1 . . . Scanalyzer 13 | . . . . . 5 . . . 3 . . . . . . . 1 . 1 . 2 1 . . . . . Insert Component 3 | . . . . . 1 . . . 1 . . . . . . . . . . . 1 . . . . . . Analyze 1 | . . . . . 1 . . . . . . . . . . . . . . . . . . . . . . Retrieve Study 9 | . . . . . 3 . . . 2 . . . . . . . 1 . 1 . 1 1 . . . . . Garrison Access Hacks 11 | . . . 1 . 1 . 1 . 1 . 2 . . . 1 . . . 1 . . . . 1 2 . . Unlock Access 7 | . . . 1 . 1 . 1 . 1 . . . . . 1 . . . 1 . . . . . 1 . . Seal Access 1 | . . . . . . . . . . . 1 . . . . . . . . . . . . . . . . Coupler Status 3 | . . . . . . . . . . . 1 . . . . . . . . . . . . 1 1 . . Unauthorized Hacks 49 | . 8 . 11 . 7 . 1 . . . 1 3 . . 4 . 2 . . . 1 5 . 5 1 . . Terminals 43 | . 8 . 11 . 7 . . . . . 1 3 . . 4 . 1 . . . . 4 . 3 1 . . Track 1 | . . . . . . . . . . . 1 . . . . . . . . . . . . . . . . Assimilate 2 | . . . . . . . . . . . . . . . . . . . . . . 1 . 1 . . . Botnet 17 | . 2 . 5 . 2 . . . . . . 2 . . 1 . 1 . . . . 2 . 1 1 . . Detonate 1 | . . . . . . . . . . . . . . . 1 . . . . . . . . . . . . Disrupt 3 | . 1 . . . . . . . . . . 1 . . 1 . . . . . . . . . . . . Operators 2 | . . . . . . . . . . . . . . . . . . . . . . 1 . 1 . . . Skim 16 | . 5 . 6 . 5 . . . . . . . . . . . . . . . . . . . . . . Sabotage 1 | . . . . . . . . . . . . . . . 1 . . . . . . . . . . . . Fabricators 2 | . . . . . . . . . . . . . . . . . . . . . 1 . . 1 . . . Liberate 1 | . . . . . . . . . . . . . . . . . . . . . . . . 1 . . . Overload 1 | . . . . . . . . . . . . . . . . . . . . . 1 . . . . . . Repair Stations 2 | . . . . . . . 1 . . . . . . . . . 1 . . . . . . . . . . Mechanics 2 | . . . . . . . 1 . . . . . . . . . 1 . . . . . . . . . . Recycling Units . | . . . . . . . . . . . . . . . . . . . . . . . . . . . . Scanalyzers . | . . . . . . . . . . . . . . . . . . . . . . . . . . . . Garrison Access 2 | . . . . . . . . . . . . . . . . . . . . . . 1 . 1 . . . Eject 2 | . . . . . . . . . . . . . . . . . . . . . . 1 . 1 . . . Data Cores Recovered . | . . . . . . . . . . . . . . . . . . . . . . . . . . . . Used . | . . . . . . . . . . . . . . . . . . . . . . . . . . . . Hacking Detections 78 | . 5 . 6 5 7 1 4 2 4 1 4 13 . . 3 1 4 . 2 3 1 5 1 4 2 . . Full Trace Events 1 | . . . . . . 1 . . . . . . . . . . . . . . . . . . . . . Feedback Events . | . . . . . . . . . . . . . . . . . . . . . . . . . . . . Feedback Blocked . | . . . . . . . . . . . . . . . . . . . . . . . . . . . . Robot Schematics Acquired . | . . . . . . . . . . . . . . . . . . . . . . . . . . . . Robots Built . | . . . . . . . . . . . . . . . . . . . . . . . . . . . . Authchips . | . . . . . . . . . . . . . . . . . . . . . . . . . . . . Time . | . . . . . . . . . . . . . . . . . . . . . . . . . . . . Total Robot Build Rating . | . . . . . . . . . . . . . . . . . . . . . . . . . . . . Part Schematics Acquired 3 | . . . . . 1 . . . . . . 1 . . . . . . . . . . 1 . . . . Parts Built . | . . . . . . . . . . . . . . . . . . . . . . . . . . . . Authchips . | . . . . . . . . . . . . . . . . . . . . . . . . . . . . Time . | . . . . . . . . . . . . . . . . . . . . . . . . . . . . Total Part Build Rating . | . . . . . . . . . . . . . . . . . . . . . . . . . . . . Part Studies Acquired 9 | . . . . . 3 . . . 2 . . . . . . . 1 . 1 . 1 1 . . . . . Parts Repaired . | . . . . . . . . . . . . . . . . . . . . . . . . . . . . Time . | . . . . . . . . . . . . . . . . . . . . . . . . . . . . Parts Recycled . | . . . . . . . . . . . . . . . . . . . . . . . . . . . . Recycled Matter 10 | . . . . . . . . . . . . . . . . . . . . . . . . 10 . . . Retrieved Matter 10 | . . . . . . . . . . . . . . . . . . . . . . . . 10 . . . Retrieved Components 33 | . . . . . 6 . . . . . . 10 . . . . 11 . 3 . . . . 3 . . . Parts Scanalyzed 2 | . . . . . 1 . . . . . . . . . . . . . . . 1 . . . . . . Part Schematics Acquired 1 | . . . . . 1 . . . . . . . . . . . . . . . . . . . . . . Parts Damaged . | . . . . . . . . . . . . . . . . . . . . . . . . . . . . Bothacking | -11 -10 -10 -8 -8 -8 -8 -7 -7 -7 -7 -6 -6 -6 -6 -6 -6 -5 -5 -5 -5 -4 -3 -3 -2 -1 -1 -1 ------------ Run | Yrd Mat Sub Mat Gar Mat Gar Fac Gar Fac Gar Fac Ext Cet Arc Hub Gar Fac Was Fac Gar Fac Res Tes Res Acc Gar Acc Used RIF Installer 7 | . . . . 1 . 1 . 1 . 1 . . . . . 1 . . . 1 . . . . . 1 . Command Fork 1 | . . . . . . . . . . . . . . . . . . . . 1 . . . . . . . Threat Obfuscator 1 | . . . . . . . . . . 1 . . . . . . . . . . . . . . . . . Signal Jammer 1 | . . . . . . . . . . . . . . . . . . . . . . . . . . 1 . Robot Detection 1 | . . . . . . . . 1 . . . . . . . . . . . . . . . . . . . Watcher Feeds 1 | . . . . . . 1 . . . . . . . . . . . . . . . . . . . . . Patrol Navigation 1 | . . . . . . . . . . . . . . . . 1 . . . . . . . . . . . Robots Hacked 94 | . . . . . . 4 1 4 4 13 4 6 . 1 7 12 13 5 . 11 3 . 3 1 . . 2 Non-combat 18 | . . . . . . . 1 . . . 4 . . 1 3 1 7 . . . 1 . . . . . . Combat 76 | . . . . . . 4 . 4 4 13 . 6 . . 4 11 6 5 . 11 2 . 3 1 . . 2 Robot Hacks Applied 100 | . . . . . . 4 1 4 4 14 4 6 . 1 8 12 16 6 . 11 3 . 3 1 . . 2 parse_system 5 | . . . . . . . . . . 1 . . . . . . 2 1 . 1 . . . . . . . generate_echo 1 | . . . . . . . . . . . . . . . . . 1 . . . . . . . . . . drop_inventory 5 | . . . . . . . . . . . 2 . . . 1 . 2 . . . . . . . . . . map_route 4 | . . . . . . . . . . . . . . . 2 . 1 . . . 1 . . . . . . mark_security 1 | . . . . . . . . . . . . . . . 1 . . . . . . . . . . . . ignore_targets 5 | . . . . . . . . . . . . . . . . . . 5 . . . . . . . . . find_garrison 1 | . . . . . . . . . . . . . . . . . 1 . . . . . . . . . . scatter_targeting 2 | . . . . . . . . . . . . 2 . . . . . . . . . . . . . . . mark_system 1 | . . . . . . . . . . . . . . . . . 1 . . . . . . . . . . broadcast_data 1 | . . . . . . . . . . . . . . . . . . . . 1 . . . . . . . amplify_resonance 8 | . . . . . . . . . 1 2 . 1 . . . . 1 . . 1 . . . . . . 2 wipe_record 2 | . . . . . . . . 1 . . . . . . . . . . . . 1 . . . . . . reboot_system 10 | . . . . . . . . . 1 2 . 1 . . . 2 2 . . . . . 2 . . . . overwrite_iff 24 | . . . . . . 3 . 1 . 6 . 2 . . 2 3 1 . . 4 1 . 1 . . . . streamctrl_high 4 | . . . . . . . . 1 . 2 . . . . . 1 . . . . . . . . . . . formatsys_low 6 | . . . . . . . 1 . . . 1 . . 1 . . 3 . . . . . . . . . . formatsys_high 20 | . . . . . . 1 . 1 2 1 1 . . . 2 6 1 . . 4 . . . 1 . . . Relay Couplers Released 122 | . . . . 23 . 17 . 23 . 18 . . . . 1 15 . . . 15 . 4 . 3 . 3 . Ejected 7 | . . . . . . . . . . . . . . . . . . . . . . 4 . 3 . . . Machine Destruction 115 | . . . . 23 . 17 . 23 . 18 . . . . 1 15 . . . 15 . . . . . 3 . Attached 53 | . . . . . . 3 1 7 . 8 1 . 1 . 3 9 2 1 . 8 3 1 1 . 1 2 1 Fabnet Peak Effective % . | . . . . . . . . . . . . . . . . . . . . . . . . . . . . Robots Rewired 39 | . . . . . . 6 . 13 . . 2 7 . . . . . . . 8 . . . . . 3 . Allies Hacked 5 | . . . . . . . . 1 . . . . . . . . 3 . . 1 . . . . . . . Hacks Repelled . | . . . . . . . . . . . . . . . . . . . . . . . . . . . . Allies | -11 -10 -10 -8 -8 -8 -8 -7 -7 -7 -7 -6 -6 -6 -6 -6 -6 -5 -5 -5 -5 -4 -3 -3 -2 -1 -1 -1 -------- Run | Yrd Mat Sub Mat Gar Mat Gar Fac Gar Fac Gar Fac Ext Cet Arc Hub Gar Fac Was Fac Gar Fac Res Tes Res Acc Gar Acc Total Allies 118 | . . . . . . 10 1 19 2 12 4 18 5 1 4 10 4 1 . 16 4 1 1 2 . 3 . Largest Group 12 | . . . . . . 6 6 9 6 3 5 12 12 9 9 4 5 1 . 10 10 1 1 2 . 3 . Highest-Rated Group 745 | . . . . . . 78 78 318 147 188 244 478 745 604 604 115 196 31 . 525 525 10 30 109 . 148 . Highest-Rated Ally 159 | . . . . . . 16 23 95 30 95 95 159 159 96 96 47 142 31 . 119 119 10 30 64 . 51 . Total Orders 141 | . . . . . . 1 5 27 2 3 9 20 . . 17 13 19 . 2 8 4 8 . 3 . . . STAY 71 | . . . . . . 1 3 12 1 2 3 8 . . 10 8 10 . 1 5 1 4 . 2 . . . FOLLOW 60 | . . . . . . . 1 12 1 1 4 12 . . 7 5 7 . 1 3 1 4 . 1 . . . GUARD 1 | . . . . . . . . . . . . . . . . . . . . . 1 . . . . . . AID 9 | . . . . . . . 1 3 . . 2 . . . . . 2 . . . 1 . . . . . . Ally Attacks 903 | . . . . . . 10 19 109 10 31 33 47 59 21 92 57 149 45 12 119 67 . 3 5 . 15 . Total Damage 29129 | . . . . . . 118 284 3133 314 631 951 1010 1293 831 3550 2130 5620 2189 478 3899 2215 . 47 163 . 273 . Kills 178 | . . . . . . . 3 33 1 6 9 6 8 4 18 13 34 3 3 22 14 . . . . 1 . Allies Corrupted 8 | . . . . . . 1 . . . . 1 . . . . 1 3 . . . 2 . . . . . . Allies Melted 3 | . . . . . . . . . . . . . . . . 1 . . . 2 . . . . . . . Borg Created 32 | . . . . . . . . . . . . . . . . . 15 . . 10 7 . . . . . . Largest Collective 4 | . . . . . . . . . . . . . . . . . 4 . . 4 3 . . . . . . Intel | -11 -10 -10 -8 -8 -8 -8 -7 -7 -7 -7 -6 -6 -6 -6 -6 -6 -5 -5 -5 -5 -4 -3 -3 -2 -1 -1 -1 ------- Run | Yrd Mat Sub Mat Gar Mat Gar Fac Gar Fac Gar Fac Ext Cet Arc Hub Gar Fac Was Fac Gar Fac Res Tes Res Acc Gar Acc Active Infowar (turns) 11579 | 39 520 789 985 29 1419 566 747 1216 . . . 1287 218 . . . . . . . 335 635 361 555 263 374 1241 Optics 2670 | . . . . . . . . . . . . . . . . . . . . . . . 237 555 263 374 1241 Terrain 546 | . . . . . . . . . . . . . . . . . . . . . . 530 . . . . 16 Seismic 8484 | 39 520 789 985 29 1418 566 747 1216 . . . . . . . . . . . . . 526 260 272 203 . 914 Machine Analysis 1 | . . . . . 1 . . . . . . . . . . . . . . . . . . . . . . Triangulation 207 | . . . . . . . . . . . . . . . . . . . . . . . . . . . 207 Cloaking 350 | . . . . . . . . . . . . . . . . . . . . . . . . . . . 350 Spoofing 1505 | . . . . . . . . . . . . 1287 218 . . . . . . . . . . . . . . Jamming 335 | . . . . . . . . . . . . . . . . . . . . . 335 . . . . . . ECM 127 | . . . . . . . . . . . . . . . . . . . . . . . . . . . 127 Robot Analysis Total 1 | . . . . . . . . . . . 1 . . . . . . . . . . . . . . . . Derelict Logs Recovered . | . . . . . . . . . . . . . . . . . . . . . . . . . . . . Drone Launches . | . . . . . . . . . . . . . . . . . . . . . . . . . . . . Drone Recoveries . | . . . . . . . . . . . . . . . . . . . . . . . . . . . . Exploration | -11 -10 -10 -8 -8 -8 -8 -7 -7 -7 -7 -6 -6 -6 -6 -6 -6 -5 -5 -5 -5 -4 -3 -3 -2 -1 -1 -1 ------------- Run | Yrd Mat Sub Mat Gar Mat Gar Fac Gar Fac Gar Fac Ext Cet Arc Hub Gar Fac Was Fac Gar Fac Res Tes Res Acc Gar Acc Turns Passed 25643 | 122 520 869 1228 1409 1690 1603 747 1987 410 1586 595 1364 340 281 931 1490 1971 165 391 1580 895 675 361 555 263 374 1241 Spaces Moved 15673 | 56 280 558 638 621 784 621 528 1035 277 778 347 743 155 57 531 737 958 77 198 678 640 1092 229 584 381 269 1821 Core 226 | 3 . . . . . . . . . . . . . . . . . . . . 208 15 . . . . . Treads 449 | 53 280 114 . . . 2 . . . . . . . . . . . . . . . . . . . . . Legs . | . . . . . . . . . . . . . . . . . . . . . . . . . . . . Wheels 10637 | . . 444 638 621 784 619 528 1035 277 778 347 743 155 57 531 737 958 77 198 678 432 . . . . . . Hover 3324 | . . . . . . . . . . . . . . . . . . . . . . 40 229 584 381 269 1821 Flight 1037 | . . . . . . . . . . . . . . . . . . . . . . 1037 . . . . . Fastest Speed 34 | 50 160 130 130 145 135 130 125 120 115 115 130 116 116 131 131 120 143 158 158 158 50 34 68 62 42 42 44 Average Speed 113 | 154 160 136 146 149 139 134 125 121 118 140 145 126 127 131 131 138 157 158 158 158 122 37 71 67 47 46 44 Slowest Speed 570 | 160 160 160 150 245 145 570 145 125 120 150 150 135 131 131 131 165 165 158 158 158 180 71 138 138 62 47 47 Overloaded Moves . | . . . . . . . . . . . . . . . . . . . . . . . . . . . . Propulsion Burnouts . | . . . . . . . . . . . . . . . . . . . . . . . . . . . . Robots Hopped 1 | . . . . . . . . . . . . . . . . . . . . . . 1 . . . . . Potential Cave-ins 5 | . . . . . . . . . . . . . . . . . . . . . . . . . . 3 2 Cave-ins Triggered . | . . . . . . . . . . . . . . . . . . . . . . . . . . . . Exploration Rate (%) 48 | 4 53 35 52 82 64 78 20 91 17 92 16 87 63 72 71 76 25 77 7 86 19 26 37 22 9 27 47 Regions Visited 27 Branch Regions 6 Pre-discovered Areas 5 | . . . 1 . 4 . . . . . . . . . . . . . . . . . . . . . . Known Exits Taken 10 | . . . 1 . 1 . 1 . 1 . 1 . . . 1 . . . 1 . . 1 . 1 1 . . Unknown Exits Taken 8 | 1 1 1 . . . . . . . . . 1 1 1 . . . . . . 1 . 1 . . . . Scrap Searched 5 | . . 5 . . . . . . . . . . . . . . . . . . . . . . . . . Spaces Dug 140 | . 1 . 9 12 5 2 5 10 1 2 . . . . 12 6 7 . 2 1 . 15 5 12 5 6 22 Terrain Destroyed 354 | . 1 . 10 12 5 2 5 10 57 45 2 8 2 . 14 31 10 . 2 5 . 15 17 12 5 26 58 Melee 92 | . . . . 12 5 2 5 4 1 . . . . . 7 6 7 . 1 1 . 10 1 11 3 1 15 Projectile 81 | . 1 . 10 . . . . . . . 2 8 2 . 7 3 3 . 1 . . 5 1 1 2 25 10 AOE 181 | . . . . . . . . 6 56 45 . . . . . 22 . . . 4 . . 15 . . . 33 Terrain Rammed . | . . . . . . . . . . . . . . . . . . . . . . . . . . . . Walls Destroyed . | . . . . . . . . . . . . . . . . . . . . . . . . . . . . Machines Disabled . | . . . . . . . . . . . . . . . . . . . . . . . . . . . . Actions | -11 -10 -10 -8 -8 -8 -8 -7 -7 -7 -7 -6 -6 -6 -6 -6 -6 -5 -5 -5 -5 -4 -3 -3 -2 -1 -1 -1 --------- Run | Yrd Mat Sub Mat Gar Mat Gar Fac Gar Fac Gar Fac Ext Cet Arc Hub Gar Fac Was Fac Gar Fac Res Tes Res Acc Gar Acc Total 21718 | 76 323 627 843 953 1297 1137 596 1606 341 1169 417 1069 271 262 732 1093 1323 118 263 1086 704 1321 395 681 439 439 2137 Wait 2859 | 2 14 15 73 64 391 125 32 209 33 204 45 175 82 204 161 145 212 33 50 116 13 117 97 29 5 57 156 Move 15649 | 55 279 557 638 620 784 620 527 1034 277 777 346 742 154 56 531 736 958 76 197 677 639 1089 228 583 381 268 1820 Hop 1 | . . . . . . . . . . . . . . . . . . . . . . 1 . . . . . Pick Up 277 | 6 5 15 24 15 7 7 5 20 1 13 2 2 1 . 2 21 20 . 1 17 7 24 4 14 15 5 24 Fast Attach 111 | 7 . 2 4 1 . 2 3 6 2 9 1 6 4 . . 8 5 . . 4 1 23 4 10 . 4 5 Attach 108 | . . 2 7 2 . 5 2 5 2 4 1 1 . . 1 13 6 1 . 7 7 13 2 5 5 5 12 Detach 47 | . . . 1 . . 4 . 2 1 3 . . . . . 11 3 . . 6 1 4 1 1 . 4 5 Swap 373 | . 6 10 25 28 40 40 7 16 6 12 2 11 8 1 8 9 26 2 9 31 6 7 5 2 9 13 34 Drop 227 | . 4 5 25 13 11 7 10 20 3 7 2 6 6 . 1 6 18 . 1 12 4 22 3 6 12 1 22 Fire 887 | 6 15 15 46 88 58 121 3 131 14 81 15 41 7 1 18 47 28 6 1 67 6 7 14 2 2 31 16 Melee 368 | . . 6 . 29 6 29 7 41 2 18 3 7 9 . 9 41 31 . 4 8 12 14 8 29 10 2 43 Ram . | . . . . . . . . . . . . . . . . . . . . . . . . . . . . Kick . | . . . . . . . . . . . . . . . . . . . . . . . . . . . . Crush . | . . . . . . . . . . . . . . . . . . . . . . . . . . . . Escape Stasis 584 | . . . . 93 . 113 . 84 . 41 . 40 . . . 56 . . . 89 . . 29 . . 39 . Rewire 159 | . . . . . . 64 . 38 . . . 5 . . . . 1 . . 41 . . . . . 10 . Trap . | . . . . . . . . . . . . . . . . . . . . . . . . . . . . Miscellaneous 68 | . . . . . . . . . . . . 33 . . 1 . 15 . . 11 8 . . . . . . Route ------- -11/Scrapyard -10/Materials (discovered 3 exits: [*Mat] / [*Min] / *Sub) -10/Subcaves -8/Materials (discovered 4 exits: *Fac x3 / Gar) -8/Garrison (discovered 3 exits: *Mat x3) -8/Materials (discovered 4 exits: *Fac x3 / Gar) -8/Garrison (discovered 3 exits: *Fac x3) -7/Factory (discovered 6 exits: *Fac x3 / Sto / *Low / Gar) -7/Garrison (discovered 3 exits: *Fac x3) -7/Factory (discovered 2 exits: *Low / Gar) -7/Garrison (discovered 3 exits: *Fac x3) -6/Factory (discovered 2 exits: *Ext x2) -6/Extension (discovered 2 exits: *Fac / *Cet) -6/Cetus (discovered 2 exits: *Fac / [*Arc]) -6/Archives -6/Hub_04(d) (discovered 4 exits: *Fac x3 / Gar) -6/Garrison (discovered 3 exits: *Fac x3) -5/Factory (discovered 3 exits: *Fac x2 / [*Upp]) -5/Waste -5/Factory (discovered 2 exits: *Fac / Gar) -5/Garrison (discovered 3 exits: *Fac x3) -4/Factory -3/Research (discovered 3 exits: Arm / *Tes x2) -3/Testing -2/Research (discovered 3 exits: *Acc x3) -1/Access -1/Garrison -1/Access To Epsilon Eridani History --------- Turn | Location | Event 4 | -11/Scrapyard | Discovered new exit (range 16) 123 | -11/Scrapyard | Entered Materials 324 | -10/Materials | Build established: Mutant 416 | -10/Materials | Discovered new exit (range 13) 517 | -10/Materials | Discovered new exit (range 12) 623 | -10/Materials | Derelicts attacked the area 635 | -10/Materials | Discovered new exit (range 6) 643 | -10/Materials | Entered Subcaves 699 | -10/Subcaves | Disturbed a concealed Subdweller 845 | -10/Subcaves | Visited 4L-MR0's lab 862 | -10/Subcaves | Found Prototype Special Melee Weapon 868 | -10/Subcaves | Found Rainbow Chip 1394 | -10/Subcaves | Core integrity fell below 50% 1495 | -10/Subcaves | Discovered new exit (range 10) 1496 | -10/Subcaves | Shifting Twisted Machinery released Battle Rifle 1504 | -10/Subcaves | Shifting Twisted Machinery released Scrap Shield 1512 | -10/Subcaves | Entered Materials 1512 | -8/Materials | Evolved 4 slots: Propulsion x1, Utility x2, Weapon x1 1869 | -8/Materials | Build established: Scavenger-Tank 2195 | -8/Materials | Learned 8 Factory zone layouts 2224 | -8/Materials | Discovered new exit (range 5) 2270 | -8/Materials | Identified exit to Factory 2393 | -8/Materials | Learned location of Extension (-6) 2441 | -8/Materials | Learned location of 1 exit from Recycling 2508 | -8/Materials | Learned Storage emergency access door positions 2512 | -8/Materials | Build established: Tank 2545 | -8/Materials | Met 7R-MNS 2547 | -8/Materials | Learned location of 1 exit from Extension 2657 | -8/Materials | Learned 4 Factory zone layouts 2726 | -8/Materials | Learned Storage stockpile data 2740 | -8/Materials | Identified exit to Garrison 2740 | -8/Materials | Entered Garrison 2770 | -8/Garrison | Triggered checkpoint 2910 | -8/Garrison | Garrison Relay disabled 2990 | -8/Garrison | Garrison Relay disabled 3033 | -8/Garrison | Installed Relay Interface Framework 3052 | -8/Garrison | Triggered checkpoint 3064 | -8/Garrison | Triggered checkpoint 3169 | -8/Garrison | Triggered checkpoint 3271 | -8/Garrison | Discovered new exit (range 10) 3350 | -8/Garrison | Triggered checkpoint 3374 | -8/Garrison | Garrison Relay disabled 3475 | -8/Garrison | Triggered checkpoint 3549 | -8/Garrison | Learned Materials security intel 3653 | -8/Garrison | Triggered checkpoint 3695 | -8/Garrison | Garrison Relay disabled 3753 | -8/Garrison | Discovered new exit (range 12) 3829 | -8/Garrison | Triggered checkpoint 3894 | -8/Garrison | Triggered checkpoint 3974 | -8/Garrison | Triggered checkpoint 4052 | -8/Garrison | Garrison Relay disabled 4119 | -8/Garrison | Discovered new exit (range 13) 4149 | -8/Garrison | Entered Materials 4549 | -8/Materials | Discovered exit to Factory (range 15) 4875 | -8/Materials | Core integrity fell below 50% 5481 | -8/Materials | Learned location of Zion (-6) 5490 | -8/Materials | Central database locked down 5532 | -8/Materials | Learned location of Recycling (-7) 5571 | -8/Materials | Identified exit to Garrison 5575 | -8/Materials | Learned location of Lower Caves (-6) 5610 | -8/Materials | Learned 4 Factory zone layouts 5636 | -8/Materials | Learned location of 1 exit from Recycling 5679 | -8/Materials | Learned Factory trap positions 5777 | -8/Materials | Build established: Mutant 5839 | -8/Materials | Entered Garrison 6054 | -8/Garrison | Triggered checkpoint 6071 | -8/Garrison | Garrison Relay disabled 6313 | -8/Garrison | Triggered checkpoint 6507 | -8/Garrison | Build established: Bothacker-Tank 6600 | -8/Garrison | Discovered exit to Factory (range 13) 6737 | -8/Garrison | Triggered checkpoint 6768 | -8/Garrison | Discovered exit to Factory (range 14) 6789 | -8/Garrison | Expanded RIF knowledge: Watcher Feeds 6860 | -8/Garrison | Triggered checkpoint 6889 | -8/Garrison | Garrison Relay disabled 6959 | -8/Garrison | Triggered checkpoint 7012 | -8/Garrison | Discovered exit to Factory (range 10) 7041 | -8/Garrison | Triggered checkpoint 7201 | -8/Garrison | Garrison Relay disabled 7256 | -8/Garrison | Triggered checkpoint 7272 | -8/Garrison | Garrison Relay disabled 7442 | -8/Garrison | Entered Factory 7442 | -7/Factory | Accompanied by 6 allies 7442 | -7/Factory | Evolved 2 slots: Utility x2 7443 | -7/Factory | Identified exit to Storage 7444 | -7/Factory | Identified exit to Factory 7444 | -7/Factory | Identified exit to Lower Caves 7445 | -7/Factory | Loaded intel: 103 trap records 7510 | -7/Factory | Build established: Bothacker-Mutant 8175 | -7/Factory | Discovered exit to Factory (range 13) 8178 | -7/Factory | Identified exit to Garrison 8189 | -7/Factory | Entered Garrison 8189 | -7/Garrison | Accompanied by 1 ally 8203 | -7/Garrison | Triggered checkpoint 8323 | -7/Garrison | Triggered checkpoint 8336 | -7/Garrison | Garrison Relay disabled 8399 | -7/Garrison | Found embedded Infiltrators 8673 | -7/Garrison | Rescued a captive Derelict 8771 | -7/Garrison | Triggered checkpoint 8780 | -7/Garrison | P-60 Hacker assimilated allied A3-1OJ(x) 8825 | -7/Garrison | Triggered checkpoint 8831 | -7/Garrison | Triggered checkpoint 8872 | -7/Garrison | Lost 3 allies 8989 | -7/Garrison | Triggered checkpoint 9029 | -7/Garrison | Garrison Relay disabled 9144 | -7/Garrison | Discovered new exit (range 14) 9359 | -7/Garrison | Triggered checkpoint 9378 | -7/Garrison | Garrison Relay disabled 9549 | -7/Garrison | Discovered new exit (range 4) 9655 | -7/Garrison | Expanded RIF knowledge: Robot Detection 9798 | -7/Garrison | Garrison Relay disabled 9842 | -7/Garrison | Discovered new exit (range 10) 9875 | -7/Garrison | Triggered checkpoint 9916 | -7/Garrison | Triggered checkpoint 9941 | -7/Garrison | Garrison Relay disabled 10176 | -7/Garrison | Entered Factory 10176 | -7/Factory | Accompanied by 6 allies 10385 | -7/Factory | Discovered exit to Lower Caves (range 8) 10455 | -7/Factory | Lost 5 allies 10554 | -7/Factory | Garrison activated, responded to threat 10576 | -7/Factory | First assault squad dispatched 10586 | -7/Factory | Identified exit to Garrison 10586 | -7/Factory | Entered Garrison 10586 | -7/Garrison | Accompanied by 2 allies 10596 | -7/Garrison | Triggered checkpoint 10629 | -7/Garrison | Garrison Relay disabled 10638 | -7/Garrison | Triggered checkpoint 10915 | -7/Garrison | Triggered checkpoint 10965 | -7/Garrison | Triggered checkpoint 11245 | -7/Garrison | Discovered exit to Factory (range 13) 11420 | -7/Garrison | Triggered checkpoint 11466 | -7/Garrison | Garrison Relay disabled 11666 | -7/Garrison | Discovered exit to Factory (range 10) 11717 | -7/Garrison | Expanded RIF knowledge: Threat Obfuscation 11739 | -7/Garrison | Triggered checkpoint 11783 | -7/Garrison | Garrison Relay disabled 11793 | -7/Garrison | Lost 3 parts (1p1u1w) 11906 | -7/Garrison | Triggered checkpoint 12011 | -7/Garrison | Found embedded Infiltrators 12017 | -7/Garrison | Build established: Botlord-Mutant 12049 | -7/Garrison | Rescued a captive Derelict 12072 | -7/Garrison | Garrison Relay disabled 12149 | -7/Garrison | Discovered exit to Factory (range 12) 12172 | -7/Garrison | Entered Factory 12172 | -6/Factory | Accompanied by 3 allies 12172 | -6/Factory | Evolved 2 slots: Power x1, Weapon x1 12173 | -6/Factory | Identified exit to Extension 12477 | -6/Factory | Build established: Botlord-Tank 12522 | -6/Factory | First assault squad dispatched 12640 | -6/Factory | Lost 4 allies 12710 | -6/Factory | Discovered exit to Extension (range 11) 12767 | -6/Factory | Entered Extension 12767 | -6/Extension | Accompanied by 3 allies 12768 | -6/Extension | Identified exit to Factory 12856 | -6/Extension | Lost 3 allies 12873 | -6/Extension | Rescued a captive Derelict 13167 | -6/Extension | Rescued a captive Derelict 13225 | -6/Extension | Rescued a captive Derelict 13444 | -6/Extension | Destroyed B-75 Beast 13529 | -6/Extension | Destroyed B-75 Beast 13588 | -6/Extension | Rescued a captive Derelict 13590 | -6/Extension | Rescued a captive Derelict 13715 | -6/Extension | Rescued A7 13725 | -6/Extension | Lost 3 allies 13745 | -6/Extension | Rescued a captive Derelict 13959 | -6/Extension | Rescued a captive Derelict 14037 | -6/Extension | Rescued a captive Derelict 14085 | -6/Extension | Discovered new exit (range 6) 14131 | -6/Extension | Entered Cetus 14131 | -6/Cetus | Accompanied by 12 allies (A7) 14136 | -6/Cetus | Acquired a Cetus Manufacturing Module code from A7 14170 | -6/Cetus | Spotted Cetus Guard 14177 | -6/Cetus | Spotted Cetus Guard 14177 | -6/Cetus | Spotted Cetus Guard 14178 | -6/Cetus | Spotted Cetus Guard 14184 | -6/Cetus | Allies destroyed Cetus Guard 14185 | -6/Cetus | Allies destroyed Cetus Guard 14192 | -6/Cetus | Allies destroyed Cetus Guard 14197 | -6/Cetus | Allies destroyed Cetus Guard 14219 | -6/Cetus | Lost 5 allies 14252 | -6/Cetus | Started Cetus Manufacturing Module 14270 | -6/Cetus | Discovered new exit (range 16) 14277 | -6/Cetus | Manufactured an Enhanced Grunt 14295 | -6/Cetus | Discovered exit to Factory (range 27) 14302 | -6/Cetus | Manufactured an Enhanced Grunt 14319 | -6/Cetus | Allies destroyed Cetus Guard 14319 | -6/Cetus | Allies destroyed Cetus Guard 14326 | -6/Cetus | Spotted Cetus Guard 14327 | -6/Cetus | Manufactured an Enhanced Grunt 14327 | -6/Cetus | Allies destroyed Cetus Guard 14331 | -6/Cetus | Allies destroyed Cetus Guard 14351 | -6/Cetus | Met Revision 17 14352 | -6/Cetus | Manufactured an Enhanced Grunt 14377 | -6/Cetus | Manufactured an Enhanced Grunt 14383 | -6/Cetus | Murdered A7 14386 | -6/Cetus | Found Prototype Protection 14386 | -6/Cetus | Identified Med. Regenerative Plating 14391 | -6/Cetus | Extracted ID and sensor layout for unrecognized location from A7's data core 14471 | -6/Cetus | Entered Archives 14471 | -6/Archives | Accompanied by 9 allies 14530 | -6/Archives | Discovered new exit (range 15) 14752 | -6/Archives | Entered Hub_04(d) 14752 | -6/Hub_04(d) | Accompanied by 9 allies 14763 | -6/Hub_04(d) | Discovered exit to Factory (range 16) 14789 | -6/Hub_04(d) | Discovered exit to Factory (range 25) 14798 | -6/Hub_04(d) | Garrison activated, responded to threat 14881 | -6/Hub_04(d) | Lost 3 allies 14897 | -6/Hub_04(d) | Discovered exit to Factory (range 14) 15296 | -6/Hub_04(d) | Build established: Botlord-Gunner 15621 | -6/Hub_04(d) | Watched by a mysterious "MATRIX" hacker. 15624 | -6/Hub_04(d) | Network Hub disabled 15652 | -6/Hub_04(d) | Spotted Lightning 15653 | -6/Hub_04(d) | Spotted Lightning 15683 | -6/Hub_04(d) | Identified exit to Garrison 15683 | -6/Hub_04(d) | Entered Garrison 15683 | -6/Garrison | Accompanied by 1 ally 15710 | -6/Garrison | Lost 3 allies 15785 | -6/Garrison | Triggered checkpoint 15809 | -6/Garrison | Garrison Relay disabled 15853 | -6/Garrison | Triggered checkpoint 15872 | -6/Garrison | Spotted B-75 Beast 15893 | -6/Garrison | Allies destroyed B-75 Beast 16053 | -6/Garrison | Triggered checkpoint 16151 | -6/Garrison | Discovered exit to Factory (range 10) 16197 | -6/Garrison | Triggered checkpoint 16263 | -6/Garrison | Garrison Relay disabled 16392 | -6/Garrison | Lost 5 parts (2p1n2w) 16408 | -6/Garrison | Expanded RIF knowledge: Patrol Navigation 16587 | -6/Garrison | Triggered checkpoint 16610 | -6/Garrison | Garrison Relay disabled 16647 | -6/Garrison | Build established: Botlord-Mutant 16684 | -6/Garrison | Triggered checkpoint 16709 | -6/Garrison | Discovered exit to Factory (range 14) 16823 | -6/Garrison | Triggered checkpoint 16888 | -6/Garrison | Discovered exit to Factory (range 12) 16924 | -6/Garrison | Triggered checkpoint 16969 | -6/Garrison | Garrison Relay disabled 17072 | -6/Garrison | Build established: Botlord-Gunner 17173 | -6/Garrison | Entered Factory 17173 | -5/Factory | Accompanied by 4 allies 17173 | -5/Factory | Evolved 2 slots: Weapon x2 17373 | -5/Factory | Discovered new exit (range 22) 17637 | -5/Factory | Lost 3 allies 17688 | -5/Factory | Identified 1B-0RG's Assimilator 17689 | -5/Factory | Assimilating Slayer 6a into Collective. 17697 | -5/Factory | Assimilating Conveyor 6a into Collective. 17766 | -5/Factory | Assimilating Conveyor 6b into Collective. 17823 | -5/Factory | Assimilating Sage 6a into Collective. 17862 | -5/Factory | P-70 Sage assimilated allied Machinist 6a 17863 | -5/Factory | Assimilating Sage 6b into Collective. 17881 | -5/Factory | Lost 5 allies 17919 | -5/Factory | Assimilating Conveyor 6c into Collective. 17944 | -5/Factory | Assimilating Engineer 6a into Collective. 17966 | -5/Factory | Assimilating Chaingunner 6a into Collective. 17969 | -5/Factory | Assimilating Chaingunner 6b into Collective. 17994 | -5/Factory | Build established: Botlord-Mutant 18011 | -5/Factory | Cargo convoy interrupted 18188 | -5/Factory | Assimilating Sage 6c into Collective. 18195 | -5/Factory | Assimilating Sage 6d into Collective. 18340 | -5/Factory | Assimilating Sentinel 6a into Collective. 18426 | -5/Factory | Discovered new exit (range 17) 18448 | -5/Factory | Found Prototype Device 18448 | -5/Factory | Identified Exp. Focal Shield 18464 | -5/Factory | Found PL-3XN's Ring of Power 18472 | -5/Factory | Found Prototype Processor 18554 | -5/Factory | Assimilating Disruptor 6a into Collective. 18692 | -5/Factory | Identified Exp. Melee Analysis Suite 19014 | -5/Factory | Garrison activated, responded to threat 19022 | -5/Factory | Discovered new exit (range 19) 19087 | -5/Factory | Lost 6 allies 19093 | -5/Factory | Assimilating Slayer 6b into Collective. 19109 | -5/Factory | Assimilating Slayer 6c into Collective. 19144 | -5/Factory | Sucked down chute 19144 | -5/Factory | Entered Waste 19145 | -5/Waste | Met a frightened Derelict 19159 | -5/Waste | EMP discharged 19164 | -5/Waste | 2 allies followed down the chute 19176 | -5/Waste | Spotted C-40 Crusher 19191 | -5/Waste | Allies destroyed C-40 Crusher 19204 | -5/Waste | Spotted C-40 Crusher 19213 | -5/Waste | Spotted C-40 Crusher 19222 | -5/Waste | Spotted C-40 Crusher 19228 | -5/Waste | Spotted C-40 Crusher 19237 | -5/Waste | Allies destroyed C-40 Crusher 19245 | -5/Waste | Spotted C-40 Crusher 19257 | -5/Waste | Discovered new exit (range 10) 19259 | -5/Waste | EMP discharged 19259 | -5/Waste | System corruption reached 10% 19259 | -5/Waste | Allies destroyed C-40 Crusher 19309 | -5/Waste | Entered Factory 19309 | -5/Factory | Accompanied by 2 allies 19617 | -5/Factory | Discovered new exit (range 26) 19679 | -5/Factory | Identified exit to Garrison 19700 | -5/Factory | Entered Garrison 19700 | -5/Garrison | Accompanied by 1 ally 19748 | -5/Garrison | Triggered checkpoint 19804 | -5/Garrison | Garrison Relay disabled 19892 | -5/Garrison | Triggered checkpoint 19921 | -5/Garrison | Triggered checkpoint 19930 | -5/Garrison | Triggered checkpoint 19952 | -5/Garrison | Assimilating Slayer 6d into Collective. 19958 | -5/Garrison | Assimilating Soldier 6c into Collective. 19965 | -5/Garrison | Assimilating Slayer 6e into Collective. 19973 | -5/Garrison | Lost 4 allies 20000 | -5/Garrison | Triggered checkpoint 20140 | -5/Garrison | Triggered checkpoint 20152 | -5/Garrison | Assimilating Soldier 6d into Collective. 20181 | -5/Garrison | Garrison Relay disabled 20228 | -5/Garrison | Discovered new exit (range 13) 20254 | -5/Garrison | Expanded RIF knowledge: Command Fork 20286 | -5/Garrison | Spotted B-75 Beast 20304 | -5/Garrison | Allies destroyed B-75 Beast 20342 | -5/Garrison | Assimilating Sage 6e into Collective. 20351 | -5/Garrison | Found Relay Coupler [Proto] 20353 | -5/Garrison | Found Relay Coupler [Proto] 20356 | -5/Garrison | Found Relay Coupler [Proto] 20359 | -5/Garrison | Found Relay Coupler [Proto] 20449 | -5/Garrison | Assimilating Veteran 6a into Collective. 20455 | -5/Garrison | Lost 3 allies 20531 | -5/Garrison | Discovered new exit (range 12) 20612 | -5/Garrison | Triggered checkpoint 20614 | -5/Garrison | Assimilating Soldier 6e into Collective. 20617 | -5/Garrison | Assimilating Soldier 6f into Collective. 20628 | -5/Garrison | Garrison Relay disabled 20765 | -5/Garrison | Assimilating Sentinel 6b into Collective. 20814 | -5/Garrison | Triggered checkpoint 20891 | -5/Garrison | Garrison Relay disabled 20909 | -5/Garrison | Assimilating Sentinel 6c into Collective. 20914 | -5/Garrison | Spotted Executioner 20929 | -5/Garrison | Assimilated Executioner with formatsys_high 20955 | -5/Garrison | Lost 4 allies 20961 | -5/Garrison | Rewired Striker 21249 | -5/Garrison | Discovered new exit (range 11) 21280 | -5/Garrison | Entered Factory 21280 | -4/Factory | Accompanied by 10 allies 21280 | -4/Factory | Evolved 2 slots: Utility x2 21438 | -4/Factory | Assimilating Warrior 7a into Collective. 21441 | -4/Factory | Assimilating Swordsman 7a into Collective. 21469 | -4/Factory | Assimilating Striker into Collective. 21589 | -4/Factory | Unchained authorized (DW-4LL) 21750 | -4/Factory | Assimilating Engineer 7a into Collective. 21793 | -4/Factory | Lost 10 allies 21800 | -4/Factory | Discovered new exit (range 70) 21909 | -4/Factory | Assimilating Assassin 7a into Collective. 21915 | -4/Factory | Assimilating Assassin 7b into Collective. 21965 | -4/Factory | Assimilating Eye 7a into Collective. 22034 | -4/Factory | DW-4LL burst out of a wall 22039 | -4/Factory | System corruption reached 10% 22046 | -4/Factory | System corruption reached 30% 22067 | -4/Factory | Released all parts (4) 22073 | -4/Factory | Core integrity fell below 50% 22095 | -4/Factory | Lost 12 parts (2p3n5u2w) 22112 | -4/Factory | Cargo convoy interrupted 22114 | -4/Factory | Spotted Striker 22133 | -4/Factory | Core integrity fell below 20% 22175 | -4/Factory | Entered Research 22175 | -3/Research | Evolved 2 slots: Propulsion x2 22354 | -3/Research | Identified exit to Armory 22354 | -3/Research | Identified exit to Testing 22375 | -3/Research | Revision forces began assault on 0b10 22386 | -3/Research | Found Prototype Device 22410 | -3/Research | Build established: Mutant 22442 | -3/Research | Identified Exp. EM Disruption Field 22492 | -3/Research | Spotted B-86 Titan 22528 | -3/Research | Met up with Revision 17++ 22755 | -3/Research | Found Unknown Launcher 22755 | -3/Research | Identified Gamma Bomb Array 22848 | -3/Research | Build established: Hacker-Mutant 22850 | -3/Research | Entered Testing 22859 | -3/Testing | Found Prototype Leg 23047 | -3/Testing | Unchained authorized (DW-4LL) 23118 | -3/Testing | Protovariant out of control (PP-79S8H9TNRM) 23118 | -3/Testing | Unleashed a protovariant (PP-79S8H9TNRM) 23129 | -3/Testing | Spotted Investigator 23148 | -3/Testing | Scanned by Researcher 23151 | -3/Testing | Destroyed Investigator 23206 | -3/Testing | Discovered new exit (range 5) 23211 | -3/Testing | Entered Research 23211 | -2/Research | Evolved 2 slots: Propulsion x2 23239 | -2/Research | Lost 7 parts (2p1u4w) 23742 | -2/Research | Identified exit to Access 23766 | -2/Research | Entered Access 23766 | -1/Access | Evolved 2 slots: Utility x2 23888 | -1/Access | Unchained authorized (DW-4LL) 23969 | -1/Access | Spotted B-99 Colossus 24029 | -1/Access | Identified exit to Garrison 24029 | -1/Access | Entered Garrison 24105 | -1/Garrison | Triggered checkpoint 24277 | -1/Garrison | Garrison Relay disabled 24304 | -1/Garrison | P-80 Master assimilated allied 28-5JT(h) 24345 | -1/Garrison | Triggered checkpoint 24354 | -1/Garrison | Discovered new exit (range 20) 24390 | -1/Garrison | Expanded RIF knowledge: Signal Jamming 24403 | -1/Garrison | Entered Access 24517 | -1/Access | Energy Cycler disabled 24879 | -1/Access | Garrison activated, responded to threat 24916 | -1/Access | Build established: Gladiator 24932 | -1/Access | Spotted B-99 Colossus 25382 | -1/Access | Build established: Bothacker-Gladiator 25397 | -1/Access | Spotted B-99 Colossus 25433 | -1/Access | Lost 3 parts (1p1u1w) 25642 | -1/Access | Discovered new exit (range 6) 25644 | *** | Escaped! Last Messages --------------- Master. 25588_ Ionic Axe follow-up attack on P-80 Master. 25588_ Destroyed Imp. Antigrav System. 25588_ Ionic Axe follow-up attack on P-80 Master. 25588_ P-80 Master destroyed. 25591_ Power Sword follow-up attack on P-80 Master. 25591_ Ionic Axe follow-up attack on P-80 Master. 25594_ P-80 Master destroyed. 25595_ Acquired 68 matter. 25597_ P-80 Master Adv. Remote Datajack severed. 25602_ P-80 Master destroyed. 25607_ Acquired Adv. Remote Datajack. 25609_ Acquired 94 matter. 25642_ The Access Shell folds into the floor. 25642_ EXIT=FOUND [Achievement: One Last FU] Map ----- +----------------------------------------------------+ | ?????????????????????????????????????????????????? | | ?????????????????????????????????????????????????? | | ?????????????????????????????????????????????????? | | ?????????????????????????????????????????????????? | | ?????????????????????????????????????????????????? | | ????????????????????????????s????????????????????? | | ?????????????????????????????????????????????????? | | ?????????????????????????????????????????????????? | | ?????????????????????????????????????????????????? | | ?????????????????????????????????????????????????? | | ??????????????????????????s??????????????????????? | | ??????????????????????????s??????????????????????? | | #??????????????????????????ss????????????????????? | | #????????????????????????????????????????????????? | | #????????????????????????????????????????????????? | | ?????????????????????????????????????????????????? | | ?????????????????????????????????????????????????? | | ??????????? ????????????????????????????????????? | | ??????????? ????????????????????????????????????? | | ??????????? ????????????????????????????????????? | | ??????????? ??????#""""""""""#??????????????????? | | ??????????# ??????# #??????????????????? | | ??????????# #?????# #??????????????????? | | ??????????# #?????# #??????????????????? | | ??????????# #?????# "" #??????????????????? | | ??????????# #?????# "@ #??????????????????? | | ??????????# #?????# #??????????????????? | | ??????????+ #?????# #??????????????????? | | ??????????# #?????# #??????????????????? | | ??????????# #????## ##?????????????????? | | ########### #????# #?????????????????? | | + # #????##"" ##?????????????????? | | # # #?????#"" #??????????????????? | | # # #?????#"" #??????????????????? | | # + #?????#T #??????????????????? | | # # #?????#"" #??????????????????? | | # # #?????#"" #??????????????????? | | + # #######"" #################### | | # + | | ########### | | ??????????#+#########################+############ | | ????????? ????????????????????? ?????????? | | ??????? ????????????????? ???????? | | ????? #??????????????# ?????? | | ????# #??????????????# ! #???? | | ????# "" #??????????????# "" #???? | | ????# "" #??????????????#= """" #???? | | ????# """""" #??????????????# """" #???? | | ????# """""" #??????????????# """" #???? | | ????# "" #??????????????# """" #???? | +----------------------------------------------------+ Best States ------------- Heat Dissipation 168 Energy Generation 45 Energy Capacity 565 Matter Stores 550 Matter Capacity 550 Sight Range 22 Terrain Scan Range 20 Terrain Scan Density 10 ECM Strength 2 Jamming Range 16 Cloak Strength 4 Additional Mass Support 16 Armor Coverage 800 Propulsion Shielding 66 Phase Shifting 10 Evasion (%) 73 Melee Accuracy 8 Recoil Reduction 2 Offensive Hacking 34 Relay Coupler Types 5 Relay Coupler Value 122 Authchip Count 2 Item Schematics ----------------- Arm. Wheel | -8/Materials | Scanalyzed Remote Force Field | -6/Extension | Hacked Nanosword | -3/Testing | Hacked Robot Schematics ------------------ None Fabricated ------------ Nothing Repaired ---------- Nothing Studied --------- Com. Wheel | -8/Materials | Hacked Arm. Wheel | -8/Materials | Hacked Minigun | -8/Materials | Hacked Arm. Huge Wheel | -7/Factory | Hacked Remote Datajack | -7/Factory | Hacked Wheel | -5/Factory | Hacked Imp. Remote Datajack | -5/Factory | Hacked Centrium Wheel | -4/Factory | Hacked Field Propulsion Array | -3/Research | Hacked Alien Tech Used ----------------- None Achievements -------------- One Last FU Tailor-made Challenges ------------ None Game ------ Seed PulseDeflectorWand Manual? 0 Play Time 08:50:24 Cumulative 441.6 hours Start 2026.03.10 @ 20:04:19 End 2026.03.11 @ 23:40:08 Sessions 11 Manual Loads 0 Difficulty Rogue Special Mode None Game No. 80 Rogue 80 Adventurer 0 Explorer 0 Win Type 0 Total 15 Types 6/1/5/1/0/0/1/1/0/0 Lore% 81 Gallery% 74 Achievement% 70 Wizard Run 0 Options --------- Layout 1 ASCII 0 Keyboard 1 Movement Vi Keybinds 1 Fullscreen 1 Font 36/Tamsyn Map View 50x40 Zoom Use 0% Tactical HUD 1 Map Filters NONE Filters NONE Steam 1 RUN: a5cf07c0-61da-4f24-9827-cf970c389d13